DepartmentFamily,Entity,Date,ExpenseType,ExpenseArea,Supplier,TransactionNumber,Amount,VATRegistrationNo
BIS,The Insolvency Service,15/10/2014,Postage,OFFICIAL RECEIVER SERVICES                                                                          ,ABACUS EXPRESS,BA0000280519,22.04,417924146
BIS,The Insolvency Service,15/10/2014,Postage,OFFICIAL RECEIVER SERVICES                                                                          ,ABACUS EXPRESS,BA0000280520,14.51,417924146
BIS,The Insolvency Service,15/10/2014,Postage,OFFICIAL RECEIVER SERVICES                                                                          ,ABACUS EXPRESS,BA0000280521,14.51,417924146
BIS,The Insolvency Service,22/10/2014,Conferences,OFFICIAL RECEIVER SERVICES                                                                          ,ABBEY COMMUNITY SERVICES LTD,BA0000280721,548.20,905362733
BIS,The Insolvency Service,01/10/2014,Office Supplies and Services,INVESTIGATIONS & ENFORCEMENT                                                                        ,ABRIC (EUROPE) LTD,BA0000280574,62.64,696032127
BIS,The Insolvency Service,09/10/2014,Agency Workers,FINANCE AND COMMERCIAL,ALLEN LANE LIMITED,BA0000280363,"2,675.52",
BIS,The Insolvency Service,22/10/2014,Agency Workers,FINANCE AND COMMERCIAL,ALLEN LANE LIMITED,BA0000280732,"2,675.52",
BIS,The Insolvency Service,22/10/2014,Agency Workers,FINANCE AND COMMERCIAL,ALLEN LANE LIMITED,BA0000280733,"4,535.04",
BIS,The Insolvency Service,23/10/2014,Agency Workers,FINANCE AND COMMERCIAL,ALLEN LANE LIMITED,BA0000280755,"2,675.52",
BIS,The Insolvency Service,27/10/2014,Agency Workers,FINANCE AND COMMERCIAL,ALLEN LANE LIMITED,BA0000280799,"2,675.52",
BIS,The Insolvency Service,23/10/2014,Computer and IT Systems,INFORMATION TECHNOLOGY                                                                              ,ALTIA SOLUTIONS LTD,BA0000280745,252.00,789836741
BIS,The Insolvency Service,23/10/2014,Computer and IT Systems,INFORMATION TECHNOLOGY                                                                              ,ALTIA SOLUTIONS LTD,BA0000280745,378.00,789836741
BIS,The Insolvency Service,01/10/2014,Office Supplies and Services,INVESTIGATIONS & ENFORCEMENT                                                                        ,AMAZON.CO.UK LTD,BA0000280574,49.99,727255821
BIS,The Insolvency Service,01/10/2014,Accommodation,OFFICIAL RECEIVER SERVICES                                                                          ,AMAZON.CO.UK LTD,BA0000280574,2.33,727255821
BIS,The Insolvency Service,01/10/2014,Accommodation,OFFICIAL RECEIVER SERVICES                                                                          ,AMAZON.CO.UK LTD,BA0000280574,-8.52,727255821
BIS,The Insolvency Service,01/10/2014,Telecoms,FINANCE AND COMMERCIAL                                                                              ,AMAZON.CO.UK LTD,BA0000280574,40.36,727255821
BIS,The Insolvency Service,01/10/2014,Computer and IT Systems,INFORMATION TECHNOLOGY                                                                              ,AMAZON.CO.UK LTD,BA0000280574,71.07,727255821
BIS,The Insolvency Service,01/10/2014,Office Supplies and Services,PEOPLE & CAPABILITY                                                                                 ,AMAZON.CO.UK LTD,BA0000280574,86.70,727255821
BIS,The Insolvency Service,01/10/2014,Accommodation,OFFICIAL RECEIVER SERVICES                                                                          ,AMAZON.CO.UK LTD,BA0000280574,8.90,727255821
BIS,The Insolvency Service,01/10/2014,Office Supplies and Services,INFORMATION TECHNOLOGY                                                                              ,AMAZON.CO.UK LTD,BA0000280574,10.00,727255821
BIS,The Insolvency Service,01/10/2014,Office Supplies and Services,ESTATES,AMAZON.CO.UK LTD,BA0000280574,55.00,727255821
BIS,The Insolvency Service,01/10/2014,Office Supplies and Services,FINANCE AND COMMERCIAL                                                                              ,AMMERHURST LTD,BA0000280574,99.31,231097780
BIS,The Insolvency Service,01/10/2014,Office Supplies and Services,FINANCE AND COMMERCIAL                                                                              ,AMMERHURST LTD,BA0000280574,63.40,231097780
BIS,The Insolvency Service,01/10/2014,Office Supplies and Services,OFFICIAL RECEIVER SERVICES                                                                          ,AMMERHURST LTD,BA0000280574,28.66,231097780
BIS,The Insolvency Service,01/10/2014,Office Supplies and Services,FINANCE AND COMMERCIAL                                                                              ,AMMERHURST LTD,BA0000280574,10.24,231097780
BIS,The Insolvency Service,27/10/2014,Accommodation,ESTATES,ANGLIAN WATER,BA0000280852,203.54,514060002
BIS,The Insolvency Service,01/10/2014,Travel and Subsistence,INVESTIGATIONS & ENFORCEMENT                                                                        ,ARVAL PHH BUSINESS SOLUTIONS LIMITED,BA0000280010,84.18,224235985
BIS,The Insolvency Service,01/10/2014,Travel and Subsistence,INVESTIGATIONS & ENFORCEMENT                                                                        ,ARVAL PHH BUSINESS SOLUTIONS LIMITED,BA0000280011,153.17,224235985
BIS,The Insolvency Service,01/10/2014,Computer and IT Systems,FINANCE AND COMMERCIAL                                                                              ,ATOS IT SERVICES UK LTD,BA0000280023,"12,435.11",
BIS,The Insolvency Service,02/10/2014,Computer and IT Systems,INFORMATION TECHNOLOGY                                                                              ,ATOS IT SERVICES UK LTD,BA0000280084,"46,754.69",
BIS,The Insolvency Service,02/10/2014,Computer and IT Systems,INFORMATION TECHNOLOGY                                                                              ,ATOS IT SERVICES UK LTD,BA0000280085,"2,888.40",
BIS,The Insolvency Service,03/10/2014,Computer and IT Systems,FINANCE AND COMMERCIAL                                                                              ,ATOS IT SERVICES UK LTD,BA0000280164,"10,114.67",
BIS,The Insolvency Service,03/10/2014,Computer and IT Systems,FINANCE AND COMMERCIAL                                                                              ,ATOS IT SERVICES UK LTD,BA0000280161,"13,047.68",
BIS,The Insolvency Service,03/10/2014,Computer and IT Systems,BUSINESS SERVICES DIRECTORATE                                                                       ,ATOS IT SERVICES UK LTD,BA0000280144,255.67,
BIS,The Insolvency Service,03/10/2014,Computer and IT Systems,INFORMATION TECHNOLOGY                                                                              ,ATOS IT SERVICES UK LTD,BA0000280156,"5,967.97",
BIS,The Insolvency Service,03/10/2014,Computer and IT Systems,FINANCE AND COMMERCIAL                                                                              ,ATOS IT SERVICES UK LTD,BA0000280165,"10,218.53",
BIS,The Insolvency Service,06/10/2014,Computer and IT Systems,FINANCE AND COMMERCIAL                                                                              ,ATOS IT SERVICES UK LTD,BA0000280160,"11,760.67",
BIS,The Insolvency Service,07/10/2014,Computer and IT Systems,INFORMATION TECHNOLOGY                                                                              ,ATOS IT SERVICES UK LTD,BA0000280252,"42,680.00",
BIS,The Insolvency Service,07/10/2014,Computer and IT Systems,INFORMATION TECHNOLOGY                                                                              ,ATOS IT SERVICES UK LTD,BA0000280252,"44,888.08",
BIS,The Insolvency Service,07/10/2014,Computer and IT Systems,INFORMATION TECHNOLOGY                                                                              ,ATOS IT SERVICES UK LTD,BA0000280203,"5,967.97",
BIS,The Insolvency Service,30/10/2014,Computer and IT Systems,INFORMATION TECHNOLOGY                                                                              ,ATOS IT SERVICES UK LTD,BA0000280950,"12,054.00",
BIS,The Insolvency Service,10/10/2014,Agency Workers,FINANCE AND COMMERCIAL                                                                              ,AUSTEN MERRITT                                              ,BA0000280401,40.00,
BIS,The Insolvency Service,06/10/2014,Agency Workers,FINANCE AND COMMERCIAL                                                                              ,BADENOCH & CLARK,BA0000280198,"3,299.40",232347975
BIS,The Insolvency Service,10/10/2014,Agency Workers,FINANCE AND COMMERCIAL                                                                              ,BADENOCH & CLARK,BA0000280409,"2,639.52",232347975
BIS,The Insolvency Service,20/10/2014,Agency Workers,FINANCE AND COMMERCIAL                                                                              ,BADENOCH & CLARK,BA0000280640,"3,299.40",232347975
BIS,The Insolvency Service,27/10/2014,Agency Workers,FINANCE AND COMMERCIAL                                                                              ,BADENOCH & CLARK,BA0000280839,"1,320.00",232347975
BIS,The Insolvency Service,27/10/2014,Agency Workers,FINANCE AND COMMERCIAL                                                                              ,BADENOCH & CLARK,BA0000280840,"3,299.40",232347975
BIS,The Insolvency Service,27/10/2014,Agency Workers,FINANCE AND COMMERCIAL                                                                              ,BADENOCH & CLARK,BA0000280856,930.00,232347975
BIS,The Insolvency Service,16/10/2014,Insolvency Case Related Costs,BUSINESS SERVICES DIRECTORATE                                                                       ,BAINES & ERNST LTD,BA0000280568,"1,420.00",
BIS,The Insolvency Service,09/10/2014,Investigation and Enforcement Costs,INVESTIGATIONS & ENFORCEMENT                                                                        ,BAKER TILLY,BA0000280332,"1,300.00",890965570
BIS,The Insolvency Service,09/10/2014,Investigation and Enforcement Costs,INVESTIGATIONS & ENFORCEMENT                                                                        ,BAKER TILLY,BA0000280333,"1,020.00",890965570
BIS,The Insolvency Service,03/10/2014,Computer and IT Systems,PROJECTS                                                                                            ,BANG COMMUNICATIONS                                         ,BA0000280163,"17,256.00",569978254
BIS,The Insolvency Service,03/10/2014,Office Supplies and Services,FINANCE AND COMMERCIAL                                                                              ,BANNER BUSINESS SERVICES Ltd.,BA0000280176,936.92,731860439
BIS,The Insolvency Service,03/10/2014,Office Supplies and Services,FINANCE AND COMMERCIAL                                                                              ,BANNER BUSINESS SERVICES Ltd.,BA0000280176,"1,431.42",731860439
BIS,The Insolvency Service,03/10/2014,Office Supplies and Services,FINANCE AND COMMERCIAL                                                                              ,BANNER BUSINESS SERVICES Ltd.,BA0000280176,"1,526.76",731860439
BIS,The Insolvency Service,03/10/2014,Office Supplies and Services,INVESTIGATIONS & ENFORCEMENT                                                                        ,BANNER BUSINESS SERVICES Ltd.,BA0000280176,62.42,731860439
BIS,The Insolvency Service,03/10/2014,Office Supplies and Services,OFFICIAL RECEIVER SERVICES                                                                          ,BANNER BUSINESS SERVICES Ltd.,BA0000280176,4.73,731860439
BIS,The Insolvency Service,03/10/2014,Office Supplies and Services,OFFICIAL RECEIVER SERVICES                                                                          ,BANNER BUSINESS SERVICES Ltd.,BA0000280176,37.42,731860439
BIS,The Insolvency Service,03/10/2014,Office Supplies and Services,OFFICIAL RECEIVER SERVICES                                                                          ,BANNER BUSINESS SERVICES Ltd.,BA0000280176,74.93,731860439
BIS,The Insolvency Service,03/10/2014,Office Supplies and Services,OFFICIAL RECEIVER SERVICES                                                                          ,BANNER BUSINESS SERVICES Ltd.,BA0000280176,75.64,731860439
BIS,The Insolvency Service,03/10/2014,Office Supplies and Services,OFFICIAL RECEIVER SERVICES                                                                          ,BANNER BUSINESS SERVICES Ltd.,BA0000280176,80.60,731860439
BIS,The Insolvency Service,03/10/2014,Office Supplies and Services,OFFICIAL RECEIVER SERVICES                                                                          ,BANNER BUSINESS SERVICES Ltd.,BA0000280176,196.20,731860439
BIS,The Insolvency Service,03/10/2014,Office Supplies and Services,OFFICIAL RECEIVER SERVICES                                                                          ,BANNER BUSINESS SERVICES Ltd.,BA0000280176,211.21,731860439
BIS,The Insolvency Service,03/10/2014,Office Supplies and Services,OFFICIAL RECEIVER SERVICES                                                                          ,BANNER BUSINESS SERVICES Ltd.,BA0000280176,220.16,731860439
BIS,The Insolvency Service,03/10/2014,Office Supplies and Services,OFFICIAL RECEIVER SERVICES                                                                          ,BANNER BUSINESS SERVICES Ltd.,BA0000280176,243.24,731860439
BIS,The Insolvency Service,03/10/2014,Office Supplies and Services,OFFICIAL RECEIVER SERVICES                                                                          ,BANNER BUSINESS SERVICES Ltd.,BA0000280176,256.33,731860439
BIS,The Insolvency Service,03/10/2014,Office Supplies and Services,OFFICIAL RECEIVER SERVICES                                                                          ,BANNER BUSINESS SERVICES Ltd.,BA0000280176,273.54,731860439
BIS,The Insolvency Service,03/10/2014,Office Supplies and Services,OFFICIAL RECEIVER SERVICES                                                                          ,BANNER BUSINESS SERVICES Ltd.,BA0000280176,312.66,731860439
BIS,The Insolvency Service,03/10/2014,Office Supplies and Services,OFFICIAL RECEIVER SERVICES                                                                          ,BANNER BUSINESS SERVICES Ltd.,BA0000280176,320.89,731860439
BIS,The Insolvency Service,03/10/2014,Office Supplies and Services,OFFICIAL RECEIVER SERVICES                                                                          ,BANNER BUSINESS SERVICES Ltd.,BA0000280176,338.71,731860439
BIS,The Insolvency Service,03/10/2014,Office Supplies and Services,OFFICIAL RECEIVER SERVICES                                                                          ,BANNER BUSINESS SERVICES Ltd.,BA0000280176,374.87,731860439
BIS,The Insolvency Service,03/10/2014,Office Supplies and Services,OFFICIAL RECEIVER SERVICES                                                                          ,BANNER BUSINESS SERVICES Ltd.,BA0000280176,392.69,731860439
BIS,The Insolvency Service,03/10/2014,Office Supplies and Services,OFFICIAL RECEIVER SERVICES                                                                          ,BANNER BUSINESS SERVICES Ltd.,BA0000280176,428.56,731860439
BIS,The Insolvency Service,03/10/2014,Office Supplies and Services,OFFICIAL RECEIVER SERVICES                                                                          ,BANNER BUSINESS SERVICES Ltd.,BA0000280176,963.77,731860439
BIS,The Insolvency Service,06/10/2014,Accommodation,ESTATES,BANNER BUSINESS SERVICES Ltd.,BA0000280200,17.10,731860439
BIS,The Insolvency Service,06/10/2014,Accommodation,ESTATES,BANNER BUSINESS SERVICES Ltd.,BA0000280200,36.34,731860439
BIS,The Insolvency Service,06/10/2014,Accommodation,ESTATES,BANNER BUSINESS SERVICES Ltd.,BA0000280200,43.20,731860439
BIS,The Insolvency Service,06/10/2014,Accommodation,ESTATES,BANNER BUSINESS SERVICES Ltd.,BA0000280200,46.30,731860439
BIS,The Insolvency Service,06/10/2014,Accommodation,ESTATES,BANNER BUSINESS SERVICES Ltd.,BA0000280200,47.75,731860439
BIS,The Insolvency Service,06/10/2014,Accommodation,ESTATES,BANNER BUSINESS SERVICES Ltd.,BA0000280200,51.48,731860439
BIS,The Insolvency Service,06/10/2014,Accommodation,ESTATES,BANNER BUSINESS SERVICES Ltd.,BA0000280200,53.64,731860439
BIS,The Insolvency Service,06/10/2014,Accommodation,ESTATES,BANNER BUSINESS SERVICES Ltd.,BA0000280200,68.40,731860439
BIS,The Insolvency Service,06/10/2014,Accommodation,ESTATES,BANNER BUSINESS SERVICES Ltd.,BA0000280200,69.66,731860439
BIS,The Insolvency Service,06/10/2014,Accommodation,ESTATES,BANNER BUSINESS SERVICES Ltd.,BA0000280200,72.30,731860439
BIS,The Insolvency Service,06/10/2014,Accommodation,ESTATES,BANNER BUSINESS SERVICES Ltd.,BA0000280200,75.60,731860439
BIS,The Insolvency Service,06/10/2014,Accommodation,ESTATES,BANNER BUSINESS SERVICES Ltd.,BA0000280200,82.50,731860439
BIS,The Insolvency Service,06/10/2014,Accommodation,ESTATES,BANNER BUSINESS SERVICES Ltd.,BA0000280200,84.60,731860439
BIS,The Insolvency Service,06/10/2014,Accommodation,ESTATES,BANNER BUSINESS SERVICES Ltd.,BA0000280200,86.81,731860439
BIS,The Insolvency Service,06/10/2014,Accommodation,ESTATES,BANNER BUSINESS SERVICES Ltd.,BA0000280200,89.70,731860439
BIS,The Insolvency Service,06/10/2014,Accommodation,ESTATES,BANNER BUSINESS SERVICES Ltd.,BA0000280200,96.07,731860439
BIS,The Insolvency Service,06/10/2014,Accommodation,ESTATES,BANNER BUSINESS SERVICES Ltd.,BA0000280200,145.00,731860439
BIS,The Insolvency Service,06/10/2014,Accommodation,ESTATES,BANNER BUSINESS SERVICES Ltd.,BA0000280200,217.80,731860439
BIS,The Insolvency Service,06/10/2014,Accommodation,ESTATES,BANNER BUSINESS SERVICES Ltd.,BA0000280200,238.74,731860439
BIS,The Insolvency Service,06/10/2014,Accommodation,ESTATES,BANNER BUSINESS SERVICES Ltd.,BA0000280200,239.56,731860439
BIS,The Insolvency Service,06/10/2014,Accommodation,ESTATES,BANNER BUSINESS SERVICES Ltd.,BA0000280200,242.35,731860439
BIS,The Insolvency Service,06/10/2014,Accommodation,ESTATES,BANNER BUSINESS SERVICES Ltd.,BA0000280200,255.25,731860439
BIS,The Insolvency Service,06/10/2014,Accommodation,ESTATES,BANNER BUSINESS SERVICES Ltd.,BA0000280200,523.22,731860439
BIS,The Insolvency Service,06/10/2014,Accommodation,ESTATES,BANNER BUSINESS SERVICES Ltd.,BA0000280200,"1,346.04",731860439
BIS,The Insolvency Service,31/10/2014,Office Supplies and Services,INFORMATION TECHNOLOGY                                                                              ,BANNER BUSINESS SERVICES Ltd.,BA0000281018,"2,958.18",731860439
BIS,The Insolvency Service,31/10/2014,Office Supplies and Services,INVESTIGATIONS & ENFORCEMENT                                                                        ,BANNER BUSINESS SERVICES Ltd.,BA0000281018,62.42,731860439
BIS,The Insolvency Service,31/10/2014,Office Supplies and Services,OFFICIAL RECEIVER SERVICES                                                                          ,BANNER BUSINESS SERVICES Ltd.,BA0000281018,4.73,731860439
BIS,The Insolvency Service,31/10/2014,Office Supplies and Services,OFFICIAL RECEIVER SERVICES                                                                          ,BANNER BUSINESS SERVICES Ltd.,BA0000281018,37.42,731860439
BIS,The Insolvency Service,31/10/2014,Office Supplies and Services,OFFICIAL RECEIVER SERVICES                                                                          ,BANNER BUSINESS SERVICES Ltd.,BA0000281018,74.93,731860439
BIS,The Insolvency Service,31/10/2014,Office Supplies and Services,OFFICIAL RECEIVER SERVICES                                                                          ,BANNER BUSINESS SERVICES Ltd.,BA0000281018,75.64,731860439
BIS,The Insolvency Service,31/10/2014,Office Supplies and Services,OFFICIAL RECEIVER SERVICES                                                                          ,BANNER BUSINESS SERVICES Ltd.,BA0000281018,80.60,731860439
BIS,The Insolvency Service,31/10/2014,Office Supplies and Services,OFFICIAL RECEIVER SERVICES                                                                          ,BANNER BUSINESS SERVICES Ltd.,BA0000281018,196.20,731860439
BIS,The Insolvency Service,31/10/2014,Office Supplies and Services,OFFICIAL RECEIVER SERVICES                                                                          ,BANNER BUSINESS SERVICES Ltd.,BA0000281018,211.21,731860439
BIS,The Insolvency Service,31/10/2014,Office Supplies and Services,OFFICIAL RECEIVER SERVICES                                                                          ,BANNER BUSINESS SERVICES Ltd.,BA0000281018,220.16,731860439
BIS,The Insolvency Service,31/10/2014,Office Supplies and Services,OFFICIAL RECEIVER SERVICES                                                                          ,BANNER BUSINESS SERVICES Ltd.,BA0000281018,243.24,731860439
BIS,The Insolvency Service,31/10/2014,Office Supplies and Services,OFFICIAL RECEIVER SERVICES                                                                          ,BANNER BUSINESS SERVICES Ltd.,BA0000281018,256.33,731860439
BIS,The Insolvency Service,31/10/2014,Office Supplies and Services,OFFICIAL RECEIVER SERVICES                                                                          ,BANNER BUSINESS SERVICES Ltd.,BA0000281018,273.54,731860439
BIS,The Insolvency Service,31/10/2014,Office Supplies and Services,OFFICIAL RECEIVER SERVICES                                                                          ,BANNER BUSINESS SERVICES Ltd.,BA0000281018,312.66,731860439
BIS,The Insolvency Service,31/10/2014,Office Supplies and Services,OFFICIAL RECEIVER SERVICES                                                                          ,BANNER BUSINESS SERVICES Ltd.,BA0000281018,320.89,731860439
BIS,The Insolvency Service,31/10/2014,Office Supplies and Services,OFFICIAL RECEIVER SERVICES                                                                          ,BANNER BUSINESS SERVICES Ltd.,BA0000281018,338.71,731860439
BIS,The Insolvency Service,31/10/2014,Office Supplies and Services,OFFICIAL RECEIVER SERVICES                                                                          ,BANNER BUSINESS SERVICES Ltd.,BA0000281018,374.87,731860439
BIS,The Insolvency Service,31/10/2014,Office Supplies and Services,OFFICIAL RECEIVER SERVICES                                                                          ,BANNER BUSINESS SERVICES Ltd.,BA0000281018,392.69,731860439
BIS,The Insolvency Service,31/10/2014,Office Supplies and Services,OFFICIAL RECEIVER SERVICES                                                                          ,BANNER BUSINESS SERVICES Ltd.,BA0000281018,428.56,731860439
BIS,The Insolvency Service,31/10/2014,Office Supplies and Services,OFFICIAL RECEIVER SERVICES                                                                          ,BANNER BUSINESS SERVICES Ltd.,BA0000281018,936.92,731860439
BIS,The Insolvency Service,31/10/2014,Office Supplies and Services,OFFICIAL RECEIVER SERVICES                                                                          ,BANNER BUSINESS SERVICES Ltd.,BA0000281018,963.77,731860439
BIS,The Insolvency Service,20/10/2014,Accommodation,ESTATES,BIRMINGHAM CITY COUNCIL,BA0000280658,308.16,
BIS,The Insolvency Service,20/10/2014,Accommodation,ESTATES,BIRMINGHAM CITY COUNCIL,BA0000280659,308.16,
BIS,The Insolvency Service,20/10/2014,Accommodation,ESTATES,BIRMINGHAM CITY COUNCIL,BA0000280660,308.16,
BIS,The Insolvency Service,20/10/2014,Accommodation,ESTATES,BIRMINGHAM CITY COUNCIL,BA0000280661,308.16,
BIS,The Insolvency Service,20/10/2014,Accommodation,ESTATES,BIRMINGHAM CITY COUNCIL,BA0000280662,308.16,
BIS,The Insolvency Service,20/10/2014,Accommodation,ESTATES,BIRMINGHAM CITY COUNCIL,BA0000280663,308.16,
BIS,The Insolvency Service,20/10/2014,Accommodation,ESTATES,BIRMINGHAM CITY COUNCIL,BA0000280664,308.16,
BIS,The Insolvency Service,20/10/2014,Accommodation,ESTATES,BIRMINGHAM CITY COUNCIL,BA0000280639,"1,815.58",
BIS,The Insolvency Service,29/10/2014,Accommodation,ESTATES,BIRMINGHAM CITY COUNCIL,BA0000280924,291.96,
BIS,The Insolvency Service,29/10/2014,Accommodation,ESTATES,BIRMINGHAM CITY COUNCIL,BA0000280925,291.96,
BIS,The Insolvency Service,29/10/2014,Accommodation,ESTATES,BIRMINGHAM CITY COUNCIL,BA0000280926,291.96,
BIS,The Insolvency Service,29/10/2014,Accommodation,ESTATES,BIRMINGHAM CITY COUNCIL,BA0000280927,291.96,
BIS,The Insolvency Service,29/10/2014,Accommodation,ESTATES,BIRMINGHAM CITY COUNCIL,BA0000280928,291.96,
BIS,The Insolvency Service,29/10/2014,Accommodation,ESTATES,BIRMINGHAM CITY COUNCIL,BA0000280929,291.96,
BIS,The Insolvency Service,29/10/2014,Accommodation,ESTATES,BIRMINGHAM CITY COUNCIL,BA0000280930,291.96,
BIS,The Insolvency Service,29/10/2014,Accommodation,ESTATES,BIRMINGHAM CITY COUNCIL,BA0000280931,291.96,
BIS,The Insolvency Service,29/10/2014,Accommodation,ESTATES,BIRMINGHAM CITY COUNCIL,BA0000280932,291.96,
BIS,The Insolvency Service,29/10/2014,Accommodation,ESTATES,BIRMINGHAM CITY COUNCIL,BA0000280933,291.96,
BIS,The Insolvency Service,29/10/2014,Accommodation,ESTATES,BIRMINGHAM CITY COUNCIL,BA0000280934,291.96,
BIS,The Insolvency Service,29/10/2014,Accommodation,ESTATES,BIRMINGHAM CITY COUNCIL,BA0000280935,291.96,
BIS,The Insolvency Service,29/10/2014,Accommodation,ESTATES,BIRMINGHAM CITY COUNCIL,BA0000280936,291.96,
BIS,The Insolvency Service,29/10/2014,Accommodation,ESTATES,BIRMINGHAM CITY COUNCIL,BA0000280937,291.96,
BIS,The Insolvency Service,29/10/2014,Accommodation,ESTATES,BIRMINGHAM CITY COUNCIL,BA0000280938,291.96,
BIS,The Insolvency Service,29/10/2014,Accommodation,ESTATES,BIRMINGHAM CITY COUNCIL,BA0000280939,291.96,
BIS,The Insolvency Service,29/10/2014,Accommodation,ESTATES,BIRMINGHAM CITY COUNCIL,BA0000280894,-156.90,
BIS,The Insolvency Service,30/10/2014,Accommodation,ESTATES,BIRMINGHAM CITY COUNCIL,BA0000280959,291.96,
BIS,The Insolvency Service,06/10/2014,Accommodation,ESTATES,BIS - DEPT. FOR BUSINESS INNOVATION & SKILLS,BA0000280206,"182,937.41",888825550
BIS,The Insolvency Service,06/10/2014,Accommodation,ESTATES,BIS - DEPT. FOR BUSINESS INNOVATION & SKILLS,BA0000280157,"63,151.85",888825550
BIS,The Insolvency Service,15/10/2014,Conferences,BUSINESS SERVICES DIRECTORATE                                                                       ,BIS - DEPT. FOR BUSINESS INNOVATION & SKILLS,BA0000280527,203.50,888825550
BIS,The Insolvency Service,02/10/2014,Investigation and Enforcement Costs,INVESTIGATIONS & ENFORCEMENT                                                                        ,BOND DICKINSON                                              ,BA0000280083,"57,622.85",123392627
BIS,The Insolvency Service,02/10/2014,Investigation and Enforcement Costs,INVESTIGATIONS & ENFORCEMENT                                                                        ,BOND DICKINSON                                              ,BA0000280082,"3,407.14",123392627
BIS,The Insolvency Service,02/10/2014,Investigation and Enforcement Costs,INVESTIGATIONS & ENFORCEMENT                                                                        ,BOND DICKINSON                                              ,BA0000280083,"36,812.18",123392627
BIS,The Insolvency Service,02/10/2014,Investigation and Enforcement Costs,INVESTIGATIONS & ENFORCEMENT                                                                        ,BOND DICKINSON                                              ,BA0000280083,926.20,123392627
BIS,The Insolvency Service,02/10/2014,Investigation and Enforcement Costs,INVESTIGATIONS & ENFORCEMENT                                                                        ,BOND DICKINSON                                              ,BA0000280083,"1,954.20",123392627
BIS,The Insolvency Service,02/10/2014,Investigation and Enforcement Costs,INVESTIGATIONS & ENFORCEMENT                                                                        ,BOND DICKINSON                                              ,BA0000280083,"8,424.03",123392627
BIS,The Insolvency Service,02/10/2014,Investigation and Enforcement Costs,INVESTIGATIONS & ENFORCEMENT                                                                        ,BOND DICKINSON                                              ,BA0000280083,"15,605.77",123392627
BIS,The Insolvency Service,09/10/2014,Investigation and Enforcement Costs,INVESTIGATIONS & ENFORCEMENT                                                                        ,BOND DICKINSON                                              ,BA0000280321,658.00,123392627
BIS,The Insolvency Service,10/10/2014,Investigation and Enforcement Costs,INVESTIGATIONS & ENFORCEMENT                                                                        ,BOND DICKINSON                                              ,BA0000280390,"32,277.00",123392627
BIS,The Insolvency Service,10/10/2014,Investigation and Enforcement Costs,INVESTIGATIONS & ENFORCEMENT                                                                        ,BOND DICKINSON                                              ,BA0000280390,"39,498.34",123392627
BIS,The Insolvency Service,10/10/2014,Investigation and Enforcement Costs,INVESTIGATIONS & ENFORCEMENT                                                                        ,BOND DICKINSON                                              ,BA0000280390,830.00,123392627
BIS,The Insolvency Service,10/10/2014,Investigation and Enforcement Costs,INVESTIGATIONS & ENFORCEMENT                                                                        ,BOND DICKINSON                                              ,BA0000280390,"2,948.00",123392627
BIS,The Insolvency Service,10/10/2014,Investigation and Enforcement Costs,INVESTIGATIONS & ENFORCEMENT                                                                        ,BOND DICKINSON                                              ,BA0000280390,911.90,123392627
BIS,The Insolvency Service,10/10/2014,Investigation and Enforcement Costs,INVESTIGATIONS & ENFORCEMENT                                                                        ,BOND DICKINSON                                              ,BA0000280390,"13,406.20",123392627
BIS,The Insolvency Service,27/10/2014,Agency Workers,FINANCE AND COMMERCIAL                                                                              ,BRIGHT TRANSFORMATIONS LTD                                  ,BA0000280857,780.00,150037651
BIS,The Insolvency Service,13/10/2014,Agency Workers,PROJECTS                                                                                            ,BROOK STREET (UK) LTD,BA0000280436,"1,503.06",
BIS,The Insolvency Service,13/10/2014,Agency Workers,BUSINESS SERVICES DIRECTORATE                                                                       ,BROOK STREET (UK) LTD,BA0000280436,195.42,
BIS,The Insolvency Service,13/10/2014,Agency Workers,BUSINESS SERVICES DIRECTORATE                                                                       ,BROOK STREET (UK) LTD,BA0000280436,195.52,
BIS,The Insolvency Service,13/10/2014,Agency Workers,BUSINESS SERVICES DIRECTORATE                                                                       ,BROOK STREET (UK) LTD,BA0000280436,298.14,
BIS,The Insolvency Service,13/10/2014,Agency Workers,BUSINESS SERVICES DIRECTORATE                                                                       ,BROOK STREET (UK) LTD,BA0000280436,330.19,
BIS,The Insolvency Service,13/10/2014,Agency Workers,BUSINESS SERVICES DIRECTORATE                                                                       ,BROOK STREET (UK) LTD,BA0000280436,340.86,
BIS,The Insolvency Service,13/10/2014,Agency Workers,BUSINESS SERVICES DIRECTORATE                                                                       ,BROOK STREET (UK) LTD,BA0000280436,364.08,
BIS,The Insolvency Service,13/10/2014,Agency Workers,BUSINESS SERVICES DIRECTORATE                                                                       ,BROOK STREET (UK) LTD,BA0000280436,454.50,
BIS,The Insolvency Service,13/10/2014,Agency Workers,BUSINESS SERVICES DIRECTORATE                                                                       ,BROOK STREET (UK) LTD,BA0000280436,511.45,
BIS,The Insolvency Service,13/10/2014,Agency Workers,BUSINESS SERVICES DIRECTORATE                                                                       ,BROOK STREET (UK) LTD,BA0000280436,630.24,
BIS,The Insolvency Service,13/10/2014,Agency Workers,BUSINESS SERVICES DIRECTORATE                                                                       ,BROOK STREET (UK) LTD,BA0000280436,664.16,
BIS,The Insolvency Service,13/10/2014,Agency Workers,BUSINESS SERVICES DIRECTORATE                                                                       ,BROOK STREET (UK) LTD,BA0000280436,674.82,
BIS,The Insolvency Service,13/10/2014,Agency Workers,BUSINESS SERVICES DIRECTORATE                                                                       ,BROOK STREET (UK) LTD,BA0000280436,690.45,
BIS,The Insolvency Service,13/10/2014,Agency Workers,BUSINESS SERVICES DIRECTORATE                                                                       ,BROOK STREET (UK) LTD,BA0000280436,705.13,
BIS,The Insolvency Service,13/10/2014,Agency Workers,BUSINESS SERVICES DIRECTORATE                                                                       ,BROOK STREET (UK) LTD,BA0000280436,752.94,
BIS,The Insolvency Service,13/10/2014,Agency Workers,BUSINESS SERVICES DIRECTORATE                                                                       ,BROOK STREET (UK) LTD,BA0000280436,757.79,
BIS,The Insolvency Service,13/10/2014,Agency Workers,BUSINESS SERVICES DIRECTORATE                                                                       ,BROOK STREET (UK) LTD,BA0000280436,814.51,
BIS,The Insolvency Service,13/10/2014,Agency Workers,BUSINESS SERVICES DIRECTORATE                                                                       ,BROOK STREET (UK) LTD,BA0000280436,836.28,
BIS,The Insolvency Service,13/10/2014,Agency Workers,BUSINESS SERVICES DIRECTORATE                                                                       ,BROOK STREET (UK) LTD,BA0000280436,853.22,
BIS,The Insolvency Service,13/10/2014,Agency Workers,BUSINESS SERVICES DIRECTORATE                                                                       ,BROOK STREET (UK) LTD,BA0000280436,904.88,
BIS,The Insolvency Service,13/10/2014,Agency Workers,BUSINESS SERVICES DIRECTORATE                                                                       ,BROOK STREET (UK) LTD,BA0000280436,912.92,
BIS,The Insolvency Service,13/10/2014,Agency Workers,BUSINESS SERVICES DIRECTORATE                                                                       ,BROOK STREET (UK) LTD,BA0000280436,952.74,
BIS,The Insolvency Service,13/10/2014,Agency Workers,BUSINESS SERVICES DIRECTORATE                                                                       ,BROOK STREET (UK) LTD,BA0000280436,995.34,
BIS,The Insolvency Service,13/10/2014,Agency Workers,BUSINESS SERVICES DIRECTORATE                                                                       ,BROOK STREET (UK) LTD,BA0000280436,998.77,
BIS,The Insolvency Service,13/10/2014,Agency Workers,BUSINESS SERVICES DIRECTORATE                                                                       ,BROOK STREET (UK) LTD,BA0000280436,"1,023.82",
BIS,The Insolvency Service,13/10/2014,Agency Workers,BUSINESS SERVICES DIRECTORATE                                                                       ,BROOK STREET (UK) LTD,BA0000280436,"1,052.28",
BIS,The Insolvency Service,13/10/2014,Agency Workers,BUSINESS SERVICES DIRECTORATE                                                                       ,BROOK STREET (UK) LTD,BA0000280436,"1,066.48",
BIS,The Insolvency Service,13/10/2014,Agency Workers,BUSINESS SERVICES DIRECTORATE                                                                       ,BROOK STREET (UK) LTD,BA0000280436,"1,134.05",
BIS,The Insolvency Service,13/10/2014,Agency Workers,BUSINESS SERVICES DIRECTORATE                                                                       ,BROOK STREET (UK) LTD,BA0000280436,"1,161.08",
BIS,The Insolvency Service,13/10/2014,Agency Workers,BUSINESS SERVICES DIRECTORATE                                                                       ,BROOK STREET (UK) LTD,BA0000280436,"1,186.62",
BIS,The Insolvency Service,13/10/2014,Agency Workers,BUSINESS SERVICES DIRECTORATE                                                                       ,BROOK STREET (UK) LTD,BA0000280436,"1,216.84",
BIS,The Insolvency Service,13/10/2014,Agency Workers,BUSINESS SERVICES DIRECTORATE                                                                       ,BROOK STREET (UK) LTD,BA0000280436,"1,242.66",
BIS,The Insolvency Service,13/10/2014,Agency Workers,BUSINESS SERVICES DIRECTORATE                                                                       ,BROOK STREET (UK) LTD,BA0000280436,"1,251.31",
BIS,The Insolvency Service,13/10/2014,Agency Workers,BUSINESS SERVICES DIRECTORATE                                                                       ,BROOK STREET (UK) LTD,BA0000280436,"1,257.44",
BIS,The Insolvency Service,13/10/2014,Agency Workers,BUSINESS SERVICES DIRECTORATE                                                                       ,BROOK STREET (UK) LTD,BA0000280436,"1,305.47",
BIS,The Insolvency Service,13/10/2014,Agency Workers,BUSINESS SERVICES DIRECTORATE                                                                       ,BROOK STREET (UK) LTD,BA0000280436,"1,314.51",
BIS,The Insolvency Service,13/10/2014,Agency Workers,BUSINESS SERVICES DIRECTORATE                                                                       ,BROOK STREET (UK) LTD,BA0000280436,"1,330.77",
BIS,The Insolvency Service,13/10/2014,Agency Workers,BUSINESS SERVICES DIRECTORATE                                                                       ,BROOK STREET (UK) LTD,BA0000280436,"1,355.98",
BIS,The Insolvency Service,13/10/2014,Agency Workers,BUSINESS SERVICES DIRECTORATE                                                                       ,BROOK STREET (UK) LTD,BA0000280436,"1,424.54",
BIS,The Insolvency Service,13/10/2014,Agency Workers,BUSINESS SERVICES DIRECTORATE                                                                       ,BROOK STREET (UK) LTD,BA0000280436,"1,493.10",
BIS,The Insolvency Service,13/10/2014,Agency Workers,BUSINESS SERVICES DIRECTORATE                                                                       ,BROOK STREET (UK) LTD,BA0000280436,"1,514.42",
BIS,The Insolvency Service,13/10/2014,Agency Workers,BUSINESS SERVICES DIRECTORATE                                                                       ,BROOK STREET (UK) LTD,BA0000280436,"1,549.89",
BIS,The Insolvency Service,13/10/2014,Agency Workers,BUSINESS SERVICES DIRECTORATE                                                                       ,BROOK STREET (UK) LTD,BA0000280436,"1,574.86",
BIS,The Insolvency Service,13/10/2014,Agency Workers,BUSINESS SERVICES DIRECTORATE                                                                       ,BROOK STREET (UK) LTD,BA0000280436,"1,620.20",
BIS,The Insolvency Service,13/10/2014,Agency Workers,BUSINESS SERVICES DIRECTORATE                                                                       ,BROOK STREET (UK) LTD,BA0000280436,"1,624.08",
BIS,The Insolvency Service,13/10/2014,Agency Workers,BUSINESS SERVICES DIRECTORATE                                                                       ,BROOK STREET (UK) LTD,BA0000280436,"1,627.10",
BIS,The Insolvency Service,13/10/2014,Agency Workers,BUSINESS SERVICES DIRECTORATE                                                                       ,BROOK STREET (UK) LTD,BA0000280436,"1,677.94",
BIS,The Insolvency Service,13/10/2014,Agency Workers,BUSINESS SERVICES DIRECTORATE                                                                       ,BROOK STREET (UK) LTD,BA0000280436,"1,708.92",
BIS,The Insolvency Service,13/10/2014,Agency Workers,BUSINESS SERVICES DIRECTORATE                                                                       ,BROOK STREET (UK) LTD,BA0000280436,"1,752.60",
BIS,The Insolvency Service,13/10/2014,Agency Workers,BUSINESS SERVICES DIRECTORATE                                                                       ,BROOK STREET (UK) LTD,BA0000280436,"1,787.70",
BIS,The Insolvency Service,13/10/2014,Agency Workers,BUSINESS SERVICES DIRECTORATE                                                                       ,BROOK STREET (UK) LTD,BA0000280436,"1,814.00",
BIS,The Insolvency Service,13/10/2014,Agency Workers,BUSINESS SERVICES DIRECTORATE                                                                       ,BROOK STREET (UK) LTD,BA0000280436,"1,900.04",
BIS,The Insolvency Service,13/10/2014,Agency Workers,BUSINESS SERVICES DIRECTORATE                                                                       ,BROOK STREET (UK) LTD,BA0000280436,"1,905.48",
BIS,The Insolvency Service,13/10/2014,Agency Workers,BUSINESS SERVICES DIRECTORATE                                                                       ,BROOK STREET (UK) LTD,BA0000280436,"1,912.56",
BIS,The Insolvency Service,13/10/2014,Agency Workers,BUSINESS SERVICES DIRECTORATE                                                                       ,BROOK STREET (UK) LTD,BA0000280436,"1,968.16",
BIS,The Insolvency Service,13/10/2014,Agency Workers,BUSINESS SERVICES DIRECTORATE                                                                       ,BROOK STREET (UK) LTD,BA0000280436,"2,000.42",
BIS,The Insolvency Service,13/10/2014,Agency Workers,BUSINESS SERVICES DIRECTORATE                                                                       ,BROOK STREET (UK) LTD,BA0000280436,"2,005.02",
BIS,The Insolvency Service,13/10/2014,Agency Workers,BUSINESS SERVICES DIRECTORATE                                                                       ,BROOK STREET (UK) LTD,BA0000280436,"2,020.47",
BIS,The Insolvency Service,13/10/2014,Agency Workers,BUSINESS SERVICES DIRECTORATE                                                                       ,BROOK STREET (UK) LTD,BA0000280436,"2,021.94",
BIS,The Insolvency Service,13/10/2014,Agency Workers,BUSINESS SERVICES DIRECTORATE                                                                       ,BROOK STREET (UK) LTD,BA0000280436,"2,031.25",
BIS,The Insolvency Service,13/10/2014,Agency Workers,BUSINESS SERVICES DIRECTORATE                                                                       ,BROOK STREET (UK) LTD,BA0000280436,"2,043.44",
BIS,The Insolvency Service,13/10/2014,Agency Workers,BUSINESS SERVICES DIRECTORATE                                                                       ,BROOK STREET (UK) LTD,BA0000280436,"2,083.22",
BIS,The Insolvency Service,13/10/2014,Agency Workers,BUSINESS SERVICES DIRECTORATE                                                                       ,BROOK STREET (UK) LTD,BA0000280436,"2,122.32",
BIS,The Insolvency Service,13/10/2014,Agency Workers,BUSINESS SERVICES DIRECTORATE                                                                       ,BROOK STREET (UK) LTD,BA0000280436,"2,123.38",
BIS,The Insolvency Service,13/10/2014,Agency Workers,BUSINESS SERVICES DIRECTORATE                                                                       ,BROOK STREET (UK) LTD,BA0000280436,"2,133.71",
BIS,The Insolvency Service,13/10/2014,Agency Workers,BUSINESS SERVICES DIRECTORATE                                                                       ,BROOK STREET (UK) LTD,BA0000280436,"2,152.10",
BIS,The Insolvency Service,13/10/2014,Agency Workers,BUSINESS SERVICES DIRECTORATE                                                                       ,BROOK STREET (UK) LTD,BA0000280436,"2,274.87",
BIS,The Insolvency Service,13/10/2014,Agency Workers,BUSINESS SERVICES DIRECTORATE                                                                       ,BROOK STREET (UK) LTD,BA0000280436,"4,289.20",
BIS,The Insolvency Service,13/10/2014,Agency Workers,INFORMATION TECHNOLOGY                                                                              ,BROOK STREET (UK) LTD,BA0000280436,554.17,
BIS,The Insolvency Service,13/10/2014,Agency Workers,INFORMATION TECHNOLOGY                                                                              ,BROOK STREET (UK) LTD,BA0000280436,727.56,
BIS,The Insolvency Service,13/10/2014,Agency Workers,INFORMATION TECHNOLOGY                                                                              ,BROOK STREET (UK) LTD,BA0000280436,807.05,
BIS,The Insolvency Service,13/10/2014,Agency Workers,INFORMATION TECHNOLOGY                                                                              ,BROOK STREET (UK) LTD,BA0000280436,819.28,
BIS,The Insolvency Service,13/10/2014,Agency Workers,INFORMATION TECHNOLOGY                                                                              ,BROOK STREET (UK) LTD,BA0000280436,"1,329.92",
BIS,The Insolvency Service,13/10/2014,Agency Workers,INFORMATION TECHNOLOGY                                                                              ,BROOK STREET (UK) LTD,BA0000280436,"1,487.95",
BIS,The Insolvency Service,13/10/2014,Agency Workers,INFORMATION TECHNOLOGY                                                                              ,BROOK STREET (UK) LTD,BA0000280436,"1,551.36",
BIS,The Insolvency Service,13/10/2014,Agency Workers,INFORMATION TECHNOLOGY                                                                              ,BROOK STREET (UK) LTD,BA0000280436,"1,574.51",
BIS,The Insolvency Service,13/10/2014,Agency Workers,INFORMATION TECHNOLOGY                                                                              ,BROOK STREET (UK) LTD,BA0000280436,"1,605.06",
BIS,The Insolvency Service,13/10/2014,Agency Workers,INFORMATION TECHNOLOGY                                                                              ,BROOK STREET (UK) LTD,BA0000280436,"1,675.81",
BIS,The Insolvency Service,13/10/2014,Agency Workers,INFORMATION TECHNOLOGY                                                                              ,BROOK STREET (UK) LTD,BA0000280436,"1,718.04",
BIS,The Insolvency Service,13/10/2014,Agency Workers,INFORMATION TECHNOLOGY                                                                              ,BROOK STREET (UK) LTD,BA0000280436,"1,724.16",
BIS,The Insolvency Service,13/10/2014,Agency Workers,INFORMATION TECHNOLOGY                                                                              ,BROOK STREET (UK) LTD,BA0000280436,"1,727.35",
BIS,The Insolvency Service,13/10/2014,Agency Workers,INFORMATION TECHNOLOGY                                                                              ,BROOK STREET (UK) LTD,BA0000280436,"3,868.02",
BIS,The Insolvency Service,13/10/2014,Agency Workers,INVESTIGATIONS & ENFORCEMENT                                                                        ,BROOK STREET (UK) LTD,BA0000280436,530.58,
BIS,The Insolvency Service,13/10/2014,Agency Workers,INVESTIGATIONS & ENFORCEMENT                                                                        ,BROOK STREET (UK) LTD,BA0000280436,564.79,
BIS,The Insolvency Service,13/10/2014,Agency Workers,INVESTIGATIONS & ENFORCEMENT                                                                        ,BROOK STREET (UK) LTD,BA0000280436,917.09,
BIS,The Insolvency Service,13/10/2014,Agency Workers,INVESTIGATIONS & ENFORCEMENT                                                                        ,BROOK STREET (UK) LTD,BA0000280436,"1,325.92",
BIS,The Insolvency Service,13/10/2014,Agency Workers,INVESTIGATIONS & ENFORCEMENT                                                                        ,BROOK STREET (UK) LTD,BA0000280436,"1,690.74",
BIS,The Insolvency Service,13/10/2014,Agency Workers,INVESTIGATIONS & ENFORCEMENT                                                                        ,BROOK STREET (UK) LTD,BA0000280436,"1,757.93",
BIS,The Insolvency Service,13/10/2014,Agency Workers,INVESTIGATIONS & ENFORCEMENT                                                                        ,BROOK STREET (UK) LTD,BA0000280436,"1,892.86",
BIS,The Insolvency Service,13/10/2014,Agency Workers,INVESTIGATIONS & ENFORCEMENT                                                                        ,BROOK STREET (UK) LTD,BA0000280436,"2,014.76",
BIS,The Insolvency Service,13/10/2014,Agency Workers,INVESTIGATIONS & ENFORCEMENT                                                                        ,BROOK STREET (UK) LTD,BA0000280436,"2,836.55",
BIS,The Insolvency Service,13/10/2014,Agency Workers,INVESTIGATIONS & ENFORCEMENT                                                                        ,BROOK STREET (UK) LTD,BA0000280436,"3,027.01",
BIS,The Insolvency Service,13/10/2014,Agency Workers,INVESTIGATIONS & ENFORCEMENT                                                                        ,BROOK STREET (UK) LTD,BA0000280436,"3,089.12",
BIS,The Insolvency Service,13/10/2014,Agency Workers,INVESTIGATIONS & ENFORCEMENT                                                                        ,BROOK STREET (UK) LTD,BA0000280436,"3,311.57",
BIS,The Insolvency Service,13/10/2014,Agency Workers,INVESTIGATIONS & ENFORCEMENT                                                                        ,BROOK STREET (UK) LTD,BA0000280436,"3,656.60",
BIS,The Insolvency Service,13/10/2014,Agency Workers,OFFICIAL RECEIVER SERVICES                                                                          ,BROOK STREET (UK) LTD,BA0000280436,225.42,
BIS,The Insolvency Service,13/10/2014,Agency Workers,OFFICIAL RECEIVER SERVICES                                                                          ,BROOK STREET (UK) LTD,BA0000280436,387.18,
BIS,The Insolvency Service,13/10/2014,Agency Workers,OFFICIAL RECEIVER SERVICES                                                                          ,BROOK STREET (UK) LTD,BA0000280436,408.73,
BIS,The Insolvency Service,13/10/2014,Agency Workers,OFFICIAL RECEIVER SERVICES                                                                          ,BROOK STREET (UK) LTD,BA0000280436,525.55,
BIS,The Insolvency Service,13/10/2014,Agency Workers,OFFICIAL RECEIVER SERVICES                                                                          ,BROOK STREET (UK) LTD,BA0000280436,727.56,
BIS,The Insolvency Service,13/10/2014,Agency Workers,OFFICIAL RECEIVER SERVICES                                                                          ,BROOK STREET (UK) LTD,BA0000280436,890.82,
BIS,The Insolvency Service,13/10/2014,Agency Workers,OFFICIAL RECEIVER SERVICES                                                                          ,BROOK STREET (UK) LTD,BA0000280436,918.31,
BIS,The Insolvency Service,13/10/2014,Agency Workers,OFFICIAL RECEIVER SERVICES                                                                          ,BROOK STREET (UK) LTD,BA0000280436,"1,075.48",
BIS,The Insolvency Service,13/10/2014,Agency Workers,OFFICIAL RECEIVER SERVICES                                                                          ,BROOK STREET (UK) LTD,BA0000280436,"1,089.82",
BIS,The Insolvency Service,13/10/2014,Agency Workers,OFFICIAL RECEIVER SERVICES                                                                          ,BROOK STREET (UK) LTD,BA0000280436,"1,119.89",
BIS,The Insolvency Service,13/10/2014,Agency Workers,OFFICIAL RECEIVER SERVICES                                                                          ,BROOK STREET (UK) LTD,BA0000280436,"1,236.24",
BIS,The Insolvency Service,13/10/2014,Agency Workers,OFFICIAL RECEIVER SERVICES                                                                          ,BROOK STREET (UK) LTD,BA0000280436,"1,259.24",
BIS,The Insolvency Service,13/10/2014,Agency Workers,OFFICIAL RECEIVER SERVICES                                                                          ,BROOK STREET (UK) LTD,BA0000280436,"1,262.01",
BIS,The Insolvency Service,13/10/2014,Agency Workers,OFFICIAL RECEIVER SERVICES                                                                          ,BROOK STREET (UK) LTD,BA0000280436,"1,285.56",
BIS,The Insolvency Service,13/10/2014,Agency Workers,OFFICIAL RECEIVER SERVICES                                                                          ,BROOK STREET (UK) LTD,BA0000280436,"1,415.52",
BIS,The Insolvency Service,13/10/2014,Agency Workers,OFFICIAL RECEIVER SERVICES                                                                          ,BROOK STREET (UK) LTD,BA0000280436,"1,423.22",
BIS,The Insolvency Service,13/10/2014,Agency Workers,OFFICIAL RECEIVER SERVICES                                                                          ,BROOK STREET (UK) LTD,BA0000280436,"1,467.34",
BIS,The Insolvency Service,13/10/2014,Agency Workers,OFFICIAL RECEIVER SERVICES                                                                          ,BROOK STREET (UK) LTD,BA0000280436,"1,546.40",
BIS,The Insolvency Service,13/10/2014,Agency Workers,OFFICIAL RECEIVER SERVICES                                                                          ,BROOK STREET (UK) LTD,BA0000280436,"1,560.78",
BIS,The Insolvency Service,13/10/2014,Agency Workers,OFFICIAL RECEIVER SERVICES                                                                          ,BROOK STREET (UK) LTD,BA0000280436,"1,713.24",
BIS,The Insolvency Service,13/10/2014,Agency Workers,OFFICIAL RECEIVER SERVICES                                                                          ,BROOK STREET (UK) LTD,BA0000280436,"1,713.50",
BIS,The Insolvency Service,13/10/2014,Agency Workers,OFFICIAL RECEIVER SERVICES                                                                          ,BROOK STREET (UK) LTD,BA0000280436,"1,721.20",
BIS,The Insolvency Service,13/10/2014,Agency Workers,OFFICIAL RECEIVER SERVICES                                                                          ,BROOK STREET (UK) LTD,BA0000280436,"1,742.46",
BIS,The Insolvency Service,13/10/2014,Agency Workers,OFFICIAL RECEIVER SERVICES                                                                          ,BROOK STREET (UK) LTD,BA0000280436,"1,802.38",
BIS,The Insolvency Service,13/10/2014,Agency Workers,OFFICIAL RECEIVER SERVICES                                                                          ,BROOK STREET (UK) LTD,BA0000280436,"1,903.61",
BIS,The Insolvency Service,13/10/2014,Agency Workers,OFFICIAL RECEIVER SERVICES                                                                          ,BROOK STREET (UK) LTD,BA0000280436,"2,043.42",
BIS,The Insolvency Service,13/10/2014,Agency Workers,OFFICIAL RECEIVER SERVICES                                                                          ,BROOK STREET (UK) LTD,BA0000280436,"3,656.60",
BIS,The Insolvency Service,13/10/2014,Agency Workers,OFFICIAL RECEIVER SERVICES                                                                          ,BROOK STREET (UK) LTD,BA0000280436,"3,833.98",
BIS,The Insolvency Service,13/10/2014,Agency Workers,PEOPLE & CAPABILITY                                                                                 ,BROOK STREET (UK) LTD,BA0000280436,"1,994.32",
BIS,The Insolvency Service,13/10/2014,Agency Workers,PROJECTS                                                                                            ,BROOK STREET (UK) LTD,BA0000280436,756.81,
BIS,The Insolvency Service,13/10/2014,Agency Workers,PROJECTS                                                                                            ,BROOK STREET (UK) LTD,BA0000280436,"2,703.80",
BIS,The Insolvency Service,31/10/2014,Agency Workers,PROJECTS                                                                                            ,BROOK STREET (UK) LTD,BA0000281022,334.16,
BIS,The Insolvency Service,31/10/2014,Agency Workers,BUSINESS SERVICES DIRECTORATE                                                                       ,BROOK STREET (UK) LTD,BA0000281022,181.80,
BIS,The Insolvency Service,31/10/2014,Agency Workers,BUSINESS SERVICES DIRECTORATE                                                                       ,BROOK STREET (UK) LTD,BA0000281022,187.68,
BIS,The Insolvency Service,31/10/2014,Agency Workers,BUSINESS SERVICES DIRECTORATE                                                                       ,BROOK STREET (UK) LTD,BA0000281022,215.10,
BIS,The Insolvency Service,31/10/2014,Agency Workers,BUSINESS SERVICES DIRECTORATE                                                                       ,BROOK STREET (UK) LTD,BA0000281022,239.33,
BIS,The Insolvency Service,31/10/2014,Agency Workers,BUSINESS SERVICES DIRECTORATE                                                                       ,BROOK STREET (UK) LTD,BA0000281022,301.66,
BIS,The Insolvency Service,31/10/2014,Agency Workers,BUSINESS SERVICES DIRECTORATE                                                                       ,BROOK STREET (UK) LTD,BA0000281022,303.12,
BIS,The Insolvency Service,31/10/2014,Agency Workers,BUSINESS SERVICES DIRECTORATE                                                                       ,BROOK STREET (UK) LTD,BA0000281022,303.84,
BIS,The Insolvency Service,31/10/2014,Agency Workers,BUSINESS SERVICES DIRECTORATE                                                                       ,BROOK STREET (UK) LTD,BA0000281022,349.02,
BIS,The Insolvency Service,31/10/2014,Agency Workers,BUSINESS SERVICES DIRECTORATE                                                                       ,BROOK STREET (UK) LTD,BA0000281022,363.60,
BIS,The Insolvency Service,31/10/2014,Agency Workers,BUSINESS SERVICES DIRECTORATE                                                                       ,BROOK STREET (UK) LTD,BA0000281022,366.70,
BIS,The Insolvency Service,31/10/2014,Agency Workers,BUSINESS SERVICES DIRECTORATE                                                                       ,BROOK STREET (UK) LTD,BA0000281022,368.96,
BIS,The Insolvency Service,31/10/2014,Agency Workers,BUSINESS SERVICES DIRECTORATE                                                                       ,BROOK STREET (UK) LTD,BA0000281022,368.96,
BIS,The Insolvency Service,31/10/2014,Agency Workers,BUSINESS SERVICES DIRECTORATE                                                                       ,BROOK STREET (UK) LTD,BA0000281022,368.96,
BIS,The Insolvency Service,31/10/2014,Agency Workers,BUSINESS SERVICES DIRECTORATE                                                                       ,BROOK STREET (UK) LTD,BA0000281022,373.85,
BIS,The Insolvency Service,31/10/2014,Agency Workers,BUSINESS SERVICES DIRECTORATE                                                                       ,BROOK STREET (UK) LTD,BA0000281022,374.74,
BIS,The Insolvency Service,31/10/2014,Agency Workers,BUSINESS SERVICES DIRECTORATE                                                                       ,BROOK STREET (UK) LTD,BA0000281022,374.74,
BIS,The Insolvency Service,31/10/2014,Agency Workers,BUSINESS SERVICES DIRECTORATE                                                                       ,BROOK STREET (UK) LTD,BA0000281022,374.74,
BIS,The Insolvency Service,31/10/2014,Agency Workers,BUSINESS SERVICES DIRECTORATE                                                                       ,BROOK STREET (UK) LTD,BA0000281022,379.80,
BIS,The Insolvency Service,31/10/2014,Agency Workers,BUSINESS SERVICES DIRECTORATE                                                                       ,BROOK STREET (UK) LTD,BA0000281022,382.50,
BIS,The Insolvency Service,31/10/2014,Agency Workers,BUSINESS SERVICES DIRECTORATE                                                                       ,BROOK STREET (UK) LTD,BA0000281022,383.94,
BIS,The Insolvency Service,31/10/2014,Agency Workers,BUSINESS SERVICES DIRECTORATE                                                                       ,BROOK STREET (UK) LTD,BA0000281022,398.16,
BIS,The Insolvency Service,31/10/2014,Agency Workers,BUSINESS SERVICES DIRECTORATE                                                                       ,BROOK STREET (UK) LTD,BA0000281022,412.69,
BIS,The Insolvency Service,31/10/2014,Agency Workers,BUSINESS SERVICES DIRECTORATE                                                                       ,BROOK STREET (UK) LTD,BA0000281022,415.75,
BIS,The Insolvency Service,31/10/2014,Agency Workers,BUSINESS SERVICES DIRECTORATE                                                                       ,BROOK STREET (UK) LTD,BA0000281022,426.60,
BIS,The Insolvency Service,31/10/2014,Agency Workers,BUSINESS SERVICES DIRECTORATE                                                                       ,BROOK STREET (UK) LTD,BA0000281022,430.20,
BIS,The Insolvency Service,31/10/2014,Agency Workers,BUSINESS SERVICES DIRECTORATE                                                                       ,BROOK STREET (UK) LTD,BA0000281022,441.44,
BIS,The Insolvency Service,31/10/2014,Agency Workers,BUSINESS SERVICES DIRECTORATE                                                                       ,BROOK STREET (UK) LTD,BA0000281022,451.99,
BIS,The Insolvency Service,31/10/2014,Agency Workers,BUSINESS SERVICES DIRECTORATE                                                                       ,BROOK STREET (UK) LTD,BA0000281022,454.24,
BIS,The Insolvency Service,31/10/2014,Agency Workers,BUSINESS SERVICES DIRECTORATE                                                                       ,BROOK STREET (UK) LTD,BA0000281022,456.36,
BIS,The Insolvency Service,31/10/2014,Agency Workers,BUSINESS SERVICES DIRECTORATE                                                                       ,BROOK STREET (UK) LTD,BA0000281022,458.10,
BIS,The Insolvency Service,31/10/2014,Agency Workers,BUSINESS SERVICES DIRECTORATE                                                                       ,BROOK STREET (UK) LTD,BA0000281022,475.08,
BIS,The Insolvency Service,31/10/2014,Agency Workers,BUSINESS SERVICES DIRECTORATE                                                                       ,BROOK STREET (UK) LTD,BA0000281022,500.86,
BIS,The Insolvency Service,31/10/2014,Agency Workers,BUSINESS SERVICES DIRECTORATE                                                                       ,BROOK STREET (UK) LTD,BA0000281022,526.14,
BIS,The Insolvency Service,31/10/2014,Agency Workers,BUSINESS SERVICES DIRECTORATE                                                                       ,BROOK STREET (UK) LTD,BA0000281022,526.14,
BIS,The Insolvency Service,31/10/2014,Agency Workers,BUSINESS SERVICES DIRECTORATE                                                                       ,BROOK STREET (UK) LTD,BA0000281022,526.94,
BIS,The Insolvency Service,31/10/2014,Agency Workers,BUSINESS SERVICES DIRECTORATE                                                                       ,BROOK STREET (UK) LTD,BA0000281022,530.58,
BIS,The Insolvency Service,31/10/2014,Agency Workers,BUSINESS SERVICES DIRECTORATE                                                                       ,BROOK STREET (UK) LTD,BA0000281022,530.58,
BIS,The Insolvency Service,31/10/2014,Agency Workers,BUSINESS SERVICES DIRECTORATE                                                                       ,BROOK STREET (UK) LTD,BA0000281022,531.02,
BIS,The Insolvency Service,31/10/2014,Agency Workers,BUSINESS SERVICES DIRECTORATE                                                                       ,BROOK STREET (UK) LTD,BA0000281022,531.02,
BIS,The Insolvency Service,31/10/2014,Agency Workers,BUSINESS SERVICES DIRECTORATE                                                                       ,BROOK STREET (UK) LTD,BA0000281022,533.24,
BIS,The Insolvency Service,31/10/2014,Agency Workers,BUSINESS SERVICES DIRECTORATE                                                                       ,BROOK STREET (UK) LTD,BA0000281022,534.06,
BIS,The Insolvency Service,31/10/2014,Agency Workers,BUSINESS SERVICES DIRECTORATE                                                                       ,BROOK STREET (UK) LTD,BA0000281022,537.74,
BIS,The Insolvency Service,31/10/2014,Agency Workers,BUSINESS SERVICES DIRECTORATE                                                                       ,BROOK STREET (UK) LTD,BA0000281022,537.74,
BIS,The Insolvency Service,31/10/2014,Agency Workers,BUSINESS SERVICES DIRECTORATE                                                                       ,BROOK STREET (UK) LTD,BA0000281022,538.20,
BIS,The Insolvency Service,31/10/2014,Agency Workers,BUSINESS SERVICES DIRECTORATE                                                                       ,BROOK STREET (UK) LTD,BA0000281022,538.20,
BIS,The Insolvency Service,31/10/2014,Agency Workers,BUSINESS SERVICES DIRECTORATE                                                                       ,BROOK STREET (UK) LTD,BA0000281022,538.50,
BIS,The Insolvency Service,31/10/2014,Agency Workers,BUSINESS SERVICES DIRECTORATE                                                                       ,BROOK STREET (UK) LTD,BA0000281022,575.90,
BIS,The Insolvency Service,31/10/2014,Agency Workers,BUSINESS SERVICES DIRECTORATE                                                                       ,BROOK STREET (UK) LTD,BA0000281022,795.80,
BIS,The Insolvency Service,31/10/2014,Agency Workers,INFORMATION TECHNOLOGY                                                                              ,BROOK STREET (UK) LTD,BA0000281022,222.62,
BIS,The Insolvency Service,31/10/2014,Agency Workers,INFORMATION TECHNOLOGY                                                                              ,BROOK STREET (UK) LTD,BA0000281022,224.36,
BIS,The Insolvency Service,31/10/2014,Agency Workers,INFORMATION TECHNOLOGY                                                                              ,BROOK STREET (UK) LTD,BA0000281022,252.58,
BIS,The Insolvency Service,31/10/2014,Agency Workers,INFORMATION TECHNOLOGY                                                                              ,BROOK STREET (UK) LTD,BA0000281022,336.32,
BIS,The Insolvency Service,31/10/2014,Agency Workers,INFORMATION TECHNOLOGY                                                                              ,BROOK STREET (UK) LTD,BA0000281022,342.38,
BIS,The Insolvency Service,31/10/2014,Agency Workers,INFORMATION TECHNOLOGY                                                                              ,BROOK STREET (UK) LTD,BA0000281022,421.86,
BIS,The Insolvency Service,31/10/2014,Agency Workers,INFORMATION TECHNOLOGY                                                                              ,BROOK STREET (UK) LTD,BA0000281022,446.32,
BIS,The Insolvency Service,31/10/2014,Agency Workers,INFORMATION TECHNOLOGY                                                                              ,BROOK STREET (UK) LTD,BA0000281022,446.42,
BIS,The Insolvency Service,31/10/2014,Agency Workers,INFORMATION TECHNOLOGY                                                                              ,BROOK STREET (UK) LTD,BA0000281022,448.44,
BIS,The Insolvency Service,31/10/2014,Agency Workers,INFORMATION TECHNOLOGY                                                                              ,BROOK STREET (UK) LTD,BA0000281022,452.44,
BIS,The Insolvency Service,31/10/2014,Agency Workers,INFORMATION TECHNOLOGY                                                                              ,BROOK STREET (UK) LTD,BA0000281022,454.24,
BIS,The Insolvency Service,31/10/2014,Agency Workers,INFORMATION TECHNOLOGY                                                                              ,BROOK STREET (UK) LTD,BA0000281022,879.84,
BIS,The Insolvency Service,31/10/2014,Agency Workers,INFORMATION TECHNOLOGY                                                                              ,BROOK STREET (UK) LTD,BA0000281022,"1,017.90",
BIS,The Insolvency Service,31/10/2014,Agency Workers,INVESTIGATIONS & ENFORCEMENT                                                                        ,BROOK STREET (UK) LTD,BA0000281022,368.96,
BIS,The Insolvency Service,31/10/2014,Agency Workers,INVESTIGATIONS & ENFORCEMENT                                                                        ,BROOK STREET (UK) LTD,BA0000281022,369.41,
BIS,The Insolvency Service,31/10/2014,Agency Workers,INVESTIGATIONS & ENFORCEMENT                                                                        ,BROOK STREET (UK) LTD,BA0000281022,423.02,
BIS,The Insolvency Service,31/10/2014,Agency Workers,INVESTIGATIONS & ENFORCEMENT                                                                        ,BROOK STREET (UK) LTD,BA0000281022,426.60,
BIS,The Insolvency Service,31/10/2014,Agency Workers,INVESTIGATIONS & ENFORCEMENT                                                                        ,BROOK STREET (UK) LTD,BA0000281022,452.44,
BIS,The Insolvency Service,31/10/2014,Agency Workers,INVESTIGATIONS & ENFORCEMENT                                                                        ,BROOK STREET (UK) LTD,BA0000281022,530.58,
BIS,The Insolvency Service,31/10/2014,Agency Workers,INVESTIGATIONS & ENFORCEMENT                                                                        ,BROOK STREET (UK) LTD,BA0000281022,616.31,
BIS,The Insolvency Service,31/10/2014,Agency Workers,INVESTIGATIONS & ENFORCEMENT                                                                        ,BROOK STREET (UK) LTD,BA0000281022,984.85,
BIS,The Insolvency Service,31/10/2014,Agency Workers,INVESTIGATIONS & ENFORCEMENT                                                                        ,BROOK STREET (UK) LTD,BA0000281022,"1,004.33",
BIS,The Insolvency Service,31/10/2014,Agency Workers,INVESTIGATIONS & ENFORCEMENT                                                                        ,BROOK STREET (UK) LTD,BA0000281022,"1,009.66",
BIS,The Insolvency Service,31/10/2014,Agency Workers,INVESTIGATIONS & ENFORCEMENT                                                                        ,BROOK STREET (UK) LTD,BA0000281022,"1,009.66",
BIS,The Insolvency Service,31/10/2014,Agency Workers,INVESTIGATIONS & ENFORCEMENT                                                                        ,BROOK STREET (UK) LTD,BA0000281022,"1,091.93",
BIS,The Insolvency Service,31/10/2014,Agency Workers,INVESTIGATIONS & ENFORCEMENT                                                                        ,BROOK STREET (UK) LTD,BA0000281022,"1,098.64",
BIS,The Insolvency Service,31/10/2014,Agency Workers,INVESTIGATIONS & ENFORCEMENT                                                                        ,BROOK STREET (UK) LTD,BA0000281022,"1,206.80",
BIS,The Insolvency Service,31/10/2014,Agency Workers,OFFICIAL RECEIVER SERVICES                                                                          ,BROOK STREET (UK) LTD,BA0000281022,272.46,
BIS,The Insolvency Service,31/10/2014,Agency Workers,OFFICIAL RECEIVER SERVICES                                                                          ,BROOK STREET (UK) LTD,BA0000281022,287.35,
BIS,The Insolvency Service,31/10/2014,Agency Workers,OFFICIAL RECEIVER SERVICES                                                                          ,BROOK STREET (UK) LTD,BA0000281022,294.17,
BIS,The Insolvency Service,31/10/2014,Agency Workers,OFFICIAL RECEIVER SERVICES                                                                          ,BROOK STREET (UK) LTD,BA0000281022,359.42,
BIS,The Insolvency Service,31/10/2014,Agency Workers,OFFICIAL RECEIVER SERVICES                                                                          ,BROOK STREET (UK) LTD,BA0000281022,363.60,
BIS,The Insolvency Service,31/10/2014,Agency Workers,OFFICIAL RECEIVER SERVICES                                                                          ,BROOK STREET (UK) LTD,BA0000281022,368.96,
BIS,The Insolvency Service,31/10/2014,Agency Workers,OFFICIAL RECEIVER SERVICES                                                                          ,BROOK STREET (UK) LTD,BA0000281022,373.94,
BIS,The Insolvency Service,31/10/2014,Agency Workers,OFFICIAL RECEIVER SERVICES                                                                          ,BROOK STREET (UK) LTD,BA0000281022,373.94,
BIS,The Insolvency Service,31/10/2014,Agency Workers,OFFICIAL RECEIVER SERVICES                                                                          ,BROOK STREET (UK) LTD,BA0000281022,374.76,
BIS,The Insolvency Service,31/10/2014,Agency Workers,OFFICIAL RECEIVER SERVICES                                                                          ,BROOK STREET (UK) LTD,BA0000281022,379.62,
BIS,The Insolvency Service,31/10/2014,Agency Workers,OFFICIAL RECEIVER SERVICES                                                                          ,BROOK STREET (UK) LTD,BA0000281022,379.80,
BIS,The Insolvency Service,31/10/2014,Agency Workers,OFFICIAL RECEIVER SERVICES                                                                          ,BROOK STREET (UK) LTD,BA0000281022,400.46,
BIS,The Insolvency Service,31/10/2014,Agency Workers,OFFICIAL RECEIVER SERVICES                                                                          ,BROOK STREET (UK) LTD,BA0000281022,430.20,
BIS,The Insolvency Service,31/10/2014,Agency Workers,OFFICIAL RECEIVER SERVICES                                                                          ,BROOK STREET (UK) LTD,BA0000281022,430.56,
BIS,The Insolvency Service,31/10/2014,Agency Workers,OFFICIAL RECEIVER SERVICES                                                                          ,BROOK STREET (UK) LTD,BA0000281022,446.32,
BIS,The Insolvency Service,31/10/2014,Agency Workers,OFFICIAL RECEIVER SERVICES                                                                          ,BROOK STREET (UK) LTD,BA0000281022,448.44,
BIS,The Insolvency Service,31/10/2014,Agency Workers,OFFICIAL RECEIVER SERVICES                                                                          ,BROOK STREET (UK) LTD,BA0000281022,452.44,
BIS,The Insolvency Service,31/10/2014,Agency Workers,OFFICIAL RECEIVER SERVICES                                                                          ,BROOK STREET (UK) LTD,BA0000281022,484.32,
BIS,The Insolvency Service,31/10/2014,Agency Workers,OFFICIAL RECEIVER SERVICES                                                                          ,BROOK STREET (UK) LTD,BA0000281022,526.14,
BIS,The Insolvency Service,31/10/2014,Agency Workers,OFFICIAL RECEIVER SERVICES                                                                          ,BROOK STREET (UK) LTD,BA0000281022,526.14,
BIS,The Insolvency Service,31/10/2014,Agency Workers,OFFICIAL RECEIVER SERVICES                                                                          ,BROOK STREET (UK) LTD,BA0000281022,533.24,
BIS,The Insolvency Service,31/10/2014,Agency Workers,OFFICIAL RECEIVER SERVICES                                                                          ,BROOK STREET (UK) LTD,BA0000281022,537.74,
BIS,The Insolvency Service,31/10/2014,Agency Workers,OFFICIAL RECEIVER SERVICES                                                                          ,BROOK STREET (UK) LTD,BA0000281022,538.20,
BIS,The Insolvency Service,31/10/2014,Agency Workers,OFFICIAL RECEIVER SERVICES                                                                          ,BROOK STREET (UK) LTD,BA0000281022,545.66,
BIS,The Insolvency Service,31/10/2014,Agency Workers,OFFICIAL RECEIVER SERVICES                                                                          ,BROOK STREET (UK) LTD,BA0000281022,595.80,
BIS,The Insolvency Service,31/10/2014,Agency Workers,PEOPLE & CAPABILITY                                                                                 ,BROOK STREET (UK) LTD,BA0000281022,483.48,
BIS,The Insolvency Service,31/10/2014,Agency Workers,PROJECTS                                                                                            ,BROOK STREET (UK) LTD,BA0000281022,374.74,
BIS,The Insolvency Service,09/10/2014,Computer and IT Systems,INVESTIGATIONS & ENFORCEMENT                                                                        ,BT BUSINESS DIRECT LTD,BA0000280349,395.80,245719348
BIS,The Insolvency Service,09/10/2014,Computer and IT Systems,INVESTIGATIONS & ENFORCEMENT                                                                        ,BT BUSINESS DIRECT LTD,BA0000280350,70.69,245719348
BIS,The Insolvency Service,07/10/2014,Telecoms,BUSINESS SERVICES DIRECTORATE                                                                       ,BT CONFERENCING SERVICES,BA0000280241,0.65,245719348
BIS,The Insolvency Service,07/10/2014,Telecoms,BUSINESS SERVICES DIRECTORATE                                                                       ,BT CONFERENCING SERVICES,BA0000280241,15.46,245719348
BIS,The Insolvency Service,07/10/2014,Telecoms,CUSTOMER AND COMMUNICATIONS                                                                         ,BT CONFERENCING SERVICES,BA0000280241,38.58,245719348
BIS,The Insolvency Service,07/10/2014,Telecoms,FINANCE AND COMMERCIAL                                                                              ,BT CONFERENCING SERVICES,BA0000280241,10.14,245719348
BIS,The Insolvency Service,07/10/2014,Telecoms,INFORMATION TECHNOLOGY                                                                              ,BT CONFERENCING SERVICES,BA0000280241,2.94,245719348
BIS,The Insolvency Service,07/10/2014,Telecoms,INFORMATION TECHNOLOGY                                                                              ,BT CONFERENCING SERVICES,BA0000280241,334.81,245719348
BIS,The Insolvency Service,07/10/2014,Telecoms,OFFICIAL RECEIVER SERVICES                                                                          ,BT CONFERENCING SERVICES,BA0000280241,0.02,245719348
BIS,The Insolvency Service,07/10/2014,Telecoms,OFFICIAL RECEIVER SERVICES                                                                          ,BT CONFERENCING SERVICES,BA0000280241,2.71,245719348
BIS,The Insolvency Service,07/10/2014,Telecoms,OFFICIAL RECEIVER SERVICES                                                                          ,BT CONFERENCING SERVICES,BA0000280241,3.41,245719348
BIS,The Insolvency Service,07/10/2014,Telecoms,OFFICIAL RECEIVER SERVICES                                                                          ,BT CONFERENCING SERVICES,BA0000280241,6.60,245719348
BIS,The Insolvency Service,07/10/2014,Telecoms,OFFICIAL RECEIVER SERVICES                                                                          ,BT CONFERENCING SERVICES,BA0000280241,7.19,245719348
BIS,The Insolvency Service,07/10/2014,Telecoms,OFFICIAL RECEIVER SERVICES                                                                          ,BT CONFERENCING SERVICES,BA0000280241,7.57,245719348
BIS,The Insolvency Service,07/10/2014,Telecoms,OFFICIAL RECEIVER SERVICES                                                                          ,BT CONFERENCING SERVICES,BA0000280241,13.24,245719348
BIS,The Insolvency Service,07/10/2014,Telecoms,OFFICIAL RECEIVER SERVICES                                                                          ,BT CONFERENCING SERVICES,BA0000280241,31.08,245719348
BIS,The Insolvency Service,27/10/2014,Telecoms,FINANCE AND COMMERCIAL                                                                              ,BT CONFERENCING SERVICES,BA0000280549,-442.85,245719348
BIS,The Insolvency Service,01/10/2014,Telecoms,FINANCE AND COMMERCIAL                                                                              ,BT TELEPHONE PAYMENT CENTRE,BA0000280574,25.51,245719348
BIS,The Insolvency Service,01/10/2014,Telecoms,FINANCE AND COMMERCIAL                                                                              ,BT TELEPHONE PAYMENT CENTRE,BA0000280574,73.62,245719348
BIS,The Insolvency Service,01/10/2014,Telecoms,INFORMATION TECHNOLOGY                                                                              ,BT TELEPHONE PAYMENT CENTRE,BA0000280574,72.81,245719348
BIS,The Insolvency Service,01/10/2014,Telecoms,PEOPLE & CAPABILITY                                                                                 ,BT TELEPHONE PAYMENT CENTRE,BA0000280574,87.27,245719348
BIS,The Insolvency Service,01/10/2014,Telecoms,PEOPLE & CAPABILITY                                                                                 ,BT TELEPHONE PAYMENT CENTRE,BA0000280574,104.34,245719348
BIS,The Insolvency Service,01/10/2014,Telecoms,PEOPLE & CAPABILITY                                                                                 ,BT TELEPHONE PAYMENT CENTRE,BA0000280574,140.23,245719348
BIS,The Insolvency Service,01/10/2014,Telecoms,FINANCE AND COMMERCIAL                                                                              ,BT TELEPHONE PAYMENT CENTRE,BA0000280574,73.27,245719348
BIS,The Insolvency Service,01/10/2014,Telecoms,FINANCE AND COMMERCIAL                                                                              ,BT TELEPHONE PAYMENT CENTRE,BA0000280574,-15.20,245719348
BIS,The Insolvency Service,09/10/2014,Telecoms,OFFICIAL RECEIVER SERVICES                                                                          ,BT TELEPHONE PAYMENT CENTRE,BA0000280342,113.76,245719348
BIS,The Insolvency Service,09/10/2014,Telecoms,OFFICIAL RECEIVER SERVICES                                                                          ,BT TELEPHONE PAYMENT CENTRE,BA0000280343,113.95,245719348
BIS,The Insolvency Service,27/10/2014,Telecoms,OFFICIAL RECEIVER SERVICES                                                                          ,BT TELEPHONE PAYMENT CENTRE,BA0000280853,113.76,245719348
BIS,The Insolvency Service,29/10/2014,Computer and IT Systems,INFORMATION TECHNOLOGY                                                                              ,BT TELEPHONE PAYMENT CENTRE,BA0000280948,"2,013.30",245719348
BIS,The Insolvency Service,09/10/2014,Investigation and Enforcement Costs,INVESTIGATIONS & ENFORCEMENT                                                                        ,BURNESS PAULL & WILLIAMSONS SOLICITORS,BA0000280334,"23,582.85",268398111
BIS,The Insolvency Service,09/10/2014,Investigation and Enforcement Costs,INVESTIGATIONS & ENFORCEMENT                                                                        ,BURNESS PAULL & WILLIAMSONS SOLICITORS,BA0000280334,"10,771.39",268398111
BIS,The Insolvency Service,09/10/2014,Investigation and Enforcement Costs,INVESTIGATIONS & ENFORCEMENT                                                                        ,BURNESS PAULL & WILLIAMSONS SOLICITORS,BA0000280334,"3,137.95",268398111
BIS,The Insolvency Service,06/10/2014,Accommodation,ESTATES,C NICKERSON,BA0000280216,15.00,
BIS,The Insolvency Service,30/10/2014,Accommodation,ESTATES,C NICKERSON,BA0000280964,15.00,
BIS,The Insolvency Service,23/10/2014,Conferences,FINANCE AND COMMERCIAL                                                                              ,CALDER                                                      ,BA0000280773,944.34,482027849
BIS,The Insolvency Service,01/10/2014,Training Costs,PEOPLE & CAPABILITY                                                                                 ,CAPITA BUSINESS SERVICES LTD,BA0000280007,574.00,618184140
BIS,The Insolvency Service,01/10/2014,Training Costs,PEOPLE & CAPABILITY                                                                                 ,CAPITA BUSINESS SERVICES LTD,BA0000280008,89.41,618184140
BIS,The Insolvency Service,03/10/2014,Training Costs,PEOPLE & CAPABILITY                                                                                 ,CAPITA BUSINESS SERVICES LTD,BA0000280076,662.00,618184140
BIS,The Insolvency Service,08/10/2014,Training Costs,PEOPLE & CAPABILITY                                                                                 ,CAPITA BUSINESS SERVICES LTD,BA0000280300,755.00,618184140
BIS,The Insolvency Service,20/10/2014,Training Costs,FINANCE AND COMMERCIAL                                                                              ,CAPITA BUSINESS SERVICES LTD,BA0000280665,143.00,618184140
BIS,The Insolvency Service,20/10/2014,Training Costs,FINANCE AND COMMERCIAL                                                                              ,CAPITA BUSINESS SERVICES LTD,BA0000280668,170.00,618184140
BIS,The Insolvency Service,20/10/2014,Training Costs,PEOPLE & CAPABILITY                                                                                 ,CAPITA BUSINESS SERVICES LTD,BA0000280641,"4,154.15",618184140
BIS,The Insolvency Service,20/10/2014,Training Costs,PEOPLE & CAPABILITY                                                                                 ,CAPITA BUSINESS SERVICES LTD,BA0000280651,125.00,618184140
BIS,The Insolvency Service,20/10/2014,Training Costs,PEOPLE & CAPABILITY                                                                                 ,CAPITA BUSINESS SERVICES LTD,BA0000280652,752.00,618184140
BIS,The Insolvency Service,20/10/2014,Training Costs,PEOPLE & CAPABILITY                                                                                 ,CAPITA BUSINESS SERVICES LTD,BA0000280666,178.82,618184140
BIS,The Insolvency Service,20/10/2014,Training Costs,PEOPLE & CAPABILITY                                                                                 ,CAPITA BUSINESS SERVICES LTD,BA0000280667,150.00,618184140
BIS,The Insolvency Service,23/10/2014,Training Costs,FINANCE AND COMMERCIAL                                                                              ,CAPITA BUSINESS SERVICES LTD,BA0000280757,"3,353.00",618184140
BIS,The Insolvency Service,23/10/2014,Training Costs,PEOPLE & CAPABILITY                                                                                 ,CAPITA BUSINESS SERVICES LTD,BA0000280778,"4,154.15",618184140
BIS,The Insolvency Service,28/10/2014,Training Costs,PEOPLE & CAPABILITY                                                                                 ,CAPITA BUSINESS SERVICES LTD,BA0000280895,115.00,618184140
BIS,The Insolvency Service,28/10/2014,Training Costs,PEOPLE & CAPABILITY                                                                                 ,CAPITA BUSINESS SERVICES LTD,BA0000280896,574.00,618184140
BIS,The Insolvency Service,28/10/2014,Training Costs,PEOPLE & CAPABILITY                                                                                 ,CAPITA BUSINESS SERVICES LTD,BA0000280897,85.40,618184140
BIS,The Insolvency Service,28/10/2014,Training Costs,PEOPLE & CAPABILITY                                                                                 ,CAPITA BUSINESS SERVICES LTD,BA0000280898,115.00,618184140
BIS,The Insolvency Service,30/10/2014,Training Costs,FINANCE AND COMMERCIAL                                                                              ,CAPITA BUSINESS SERVICES LTD,BA0000280958,662.00,618184140
BIS,The Insolvency Service,01/10/2014,Agency Workers,INFORMATION TECHNOLOGY                                                                              ,CAPITA RESOURCING LTD,BA0000280018,"2,072.52",618184140
BIS,The Insolvency Service,03/10/2014,Agency Workers,FINANCE AND COMMERCIAL                                                                              ,CAPITA RESOURCING LTD,BA0000280180,"3,900.00",618184140
BIS,The Insolvency Service,06/10/2014,Agency Workers,FINANCE AND COMMERCIAL                                                                              ,CAPITA RESOURCING LTD,BA0000280205,"2,072.52",618184140
BIS,The Insolvency Service,06/10/2014,Agency Workers,FINANCE AND COMMERCIAL                                                                              ,CAPITA RESOURCING LTD,BA0000280201,"2,072.52",618184140
BIS,The Insolvency Service,06/10/2014,Agency Workers,FINANCE AND COMMERCIAL                                                                              ,CAPITA RESOURCING LTD,BA0000280202,"2,072.52",618184140
BIS,The Insolvency Service,09/10/2014,Agency Workers,FINANCE AND COMMERCIAL                                                                              ,CAPITA RESOURCING LTD,BA0000280364,"12,435.12",618184140
BIS,The Insolvency Service,09/10/2014,Agency Workers,INFORMATION TECHNOLOGY                                                                              ,CAPITA RESOURCING LTD,BA0000280365,"2,072.52",618184140
BIS,The Insolvency Service,10/10/2014,Agency Workers,FINANCE AND COMMERCIAL                                                                              ,CAPITA RESOURCING LTD,BA0000280393,"3,900.00",618184140
BIS,The Insolvency Service,17/10/2014,Agency Workers,INFORMATION TECHNOLOGY                                                                              ,CAPITA RESOURCING LTD,BA0000280581,"2,072.52",618184140
BIS,The Insolvency Service,22/10/2014,Agency Workers,INFORMATION TECHNOLOGY                                                                              ,CAPITA RESOURCING LTD,BA0000280737,"2,072.52",618184140
BIS,The Insolvency Service,27/10/2014,Agency Workers,FINANCE AND COMMERCIAL                                                                              ,CAPITA RESOURCING LTD,BA0000280866,"7,800.00",618184140
BIS,The Insolvency Service,29/10/2014,Agency Workers,INFORMATION TECHNOLOGY                                                                              ,CAPITA RESOURCING LTD,BA0000280946,"2,072.52",618184140
BIS,The Insolvency Service,30/10/2014,Agency Workers,FINANCE AND COMMERCIAL                                                                              ,CAPITA RESOURCING LTD,BA0000280957,"3,900.00",618184140
BIS,The Insolvency Service,01/10/2014,Postage,OFFICIAL RECEIVER SERVICES                                                                          ,CARDS GALORE,BA0000280574,44.64,
BIS,The Insolvency Service,01/10/2014,Computer and IT Systems,INFORMATION TECHNOLOGY                                                                              ,CERTES COMPUTING LIMITED,BA0000280017,"10,852.25",
BIS,The Insolvency Service,02/10/2014,Accommodation,ESTATES,CGM LANDSCAPES (COMPLETE GROUNDS MAINTENANCE LTD),BA0000280079,102.00,943560027
BIS,The Insolvency Service,31/10/2014,Accommodation,ESTATES,CGM LANDSCAPES (COMPLETE GROUNDS MAINTENANCE LTD),BA0000280997,102.00,943560027
BIS,The Insolvency Service,16/10/2014,Insolvency Case Related Costs,BUSINESS SERVICES DIRECTORATE                                                                       ,CHRISTIANS AGAINST POVERTY,BA0000280566,"6,910.00",
BIS,The Insolvency Service,10/10/2014,Conferences,FINANCE AND COMMERCIAL                                                                              ,CHURCH HOUSE CONFERENCE CENTRE LTD,BA0000280375,396.00,
BIS,The Insolvency Service,27/10/2014,Training Costs,FINANCE AND COMMERCIAL,CIPFA,BA0000280798,"29,970.76",627390725
BIS,The Insolvency Service,13/10/2014,Travel and Subsistence,BUSINESS SERVICES DIRECTORATE                                                                       ,CITY CABS (EDINBURGH) LTD,BA0000280422,32.99,270679436
BIS,The Insolvency Service,28/10/2014,Travel and Subsistence,OFFICIAL RECEIVER SERVICES                                                                          ,CITY CABS (LEEDS),BA0000280900,5.60,721696132
BIS,The Insolvency Service,03/10/2014,Postage,OFFICIAL RECEIVER SERVICES                                                                          ,CITY SPRINT UK LTD,BA0000280152,55.71,
BIS,The Insolvency Service,07/10/2014,Postage,OFFICIAL RECEIVER SERVICES                                                                          ,CITY SPRINT UK LTD,BA0000280237,60.80,
BIS,The Insolvency Service,09/10/2014,Postage,INFORMATION TECHNOLOGY                                                                              ,CITY SPRINT UK LTD,BA0000280311,16.80,
BIS,The Insolvency Service,10/10/2014,Employee Related Costs,PEOPLE & CAPABILITY                                                                                 ,CITY SPRINT UK LTD,BA0000280376,91.12,
BIS,The Insolvency Service,15/10/2014,Postage,OFFICIAL RECEIVER SERVICES                                                                          ,CITY SPRINT UK LTD,BA0000280522,107.34,
BIS,The Insolvency Service,22/10/2014,Postage,FINANCE AND COMMERCIAL                                                                              ,CITY SPRINT UK LTD,BA0000280723,186.47,
BIS,The Insolvency Service,31/10/2014,Postage,OFFICIAL RECEIVER SERVICES                                                                          ,CITY SPRINT UK LTD,BA0000280994,227.42,
BIS,The Insolvency Service,31/10/2014,Postage,OFFICIAL RECEIVER SERVICES                                                                          ,CITY SPRINT UK LTD,BA0000280995,48.64,
BIS,The Insolvency Service,14/10/2014,Investigation and Enforcement Costs,INVESTIGATIONS & ENFORCEMENT                                                                        ,CLARKE WILLMOTT SOLICITORS,BA0000280473,384.75,129913060
BIS,The Insolvency Service,10/10/2014,Telecoms,BUSINESS SERVICES DIRECTORATE                                                                       ,CLOUDXL,BA0000280412,"1,692.38",897386841
BIS,The Insolvency Service,01/10/2014,Insolvency Case Related Costs,OFFICIAL RECEIVER SERVICES                                                                          ,COLEGIO REGISTRADORES C,BA0000280574,-8.69,
BIS,The Insolvency Service,07/10/2014,Insolvency Case Related Costs,OFFICIAL RECEIVER SERVICES                                                                          ,COMPANIES HOUSE,BA0000280235,19.00,GD255
BIS,The Insolvency Service,08/10/2014,Insolvency Case Related Costs,OFFICIAL RECEIVER SERVICES                                                                          ,COMPANIES HOUSE,BA0000280301,45.00,GD255
BIS,The Insolvency Service,08/10/2014,Insolvency Case Related Costs,OFFICIAL RECEIVER SERVICES                                                                          ,COMPANIES HOUSE,BA0000280302,144.00,GD255
BIS,The Insolvency Service,09/10/2014,Insolvency Case Related Costs,OFFICIAL RECEIVER SERVICES                                                                          ,COMPANIES HOUSE,BA0000280368,140.00,GD255
BIS,The Insolvency Service,09/10/2014,Insolvency Case Related Costs,OFFICIAL RECEIVER SERVICES                                                                          ,COMPANIES HOUSE,BA0000280322,14.00,GD255
BIS,The Insolvency Service,09/10/2014,Insolvency Case Related Costs,OFFICIAL RECEIVER SERVICES                                                                          ,COMPANIES HOUSE,BA0000280326,14.00,GD255
BIS,The Insolvency Service,09/10/2014,Insolvency Case Related Costs,OFFICIAL RECEIVER SERVICES                                                                          ,COMPANIES HOUSE,BA0000280327,24.00,GD255
BIS,The Insolvency Service,09/10/2014,Insolvency Case Related Costs,OFFICIAL RECEIVER SERVICES                                                                          ,COMPANIES HOUSE,BA0000280328,52.00,GD255
BIS,The Insolvency Service,09/10/2014,Insolvency Case Related Costs,OFFICIAL RECEIVER SERVICES                                                                          ,COMPANIES HOUSE,BA0000280344,22.00,GD255
BIS,The Insolvency Service,09/10/2014,Insolvency Case Related Costs,OFFICIAL RECEIVER SERVICES                                                                          ,COMPANIES HOUSE,BA0000280345,7.00,GD255
BIS,The Insolvency Service,09/10/2014,Insolvency Case Related Costs,OFFICIAL RECEIVER SERVICES                                                                          ,COMPANIES HOUSE,BA0000280346,176.00,GD255
BIS,The Insolvency Service,09/10/2014,Insolvency Case Related Costs,OFFICIAL RECEIVER SERVICES                                                                          ,COMPANIES HOUSE,BA0000280351,133.00,GD255
BIS,The Insolvency Service,09/10/2014,Insolvency Case Related Costs,OFFICIAL RECEIVER SERVICES                                                                          ,COMPANIES HOUSE,BA0000280352,5.00,GD255
BIS,The Insolvency Service,10/10/2014,Insolvency Case Related Costs,OFFICIAL RECEIVER SERVICES                                                                          ,COMPANIES HOUSE,BA0000280406,-23.00,GD255
BIS,The Insolvency Service,10/10/2014,Insolvency Case Related Costs,OFFICIAL RECEIVER SERVICES                                                                          ,COMPANIES HOUSE,BA0000280373,104.00,GD255
BIS,The Insolvency Service,10/10/2014,Insolvency Case Related Costs,OFFICIAL RECEIVER SERVICES                                                                          ,COMPANIES HOUSE,BA0000280374,15.00,GD255
BIS,The Insolvency Service,10/10/2014,Insolvency Case Related Costs,OFFICIAL RECEIVER SERVICES                                                                          ,COMPANIES HOUSE,BA0000280382,53.00,GD255
BIS,The Insolvency Service,10/10/2014,Insolvency Case Related Costs,OFFICIAL RECEIVER SERVICES                                                                          ,COMPANIES HOUSE,BA0000280404,54.00,GD255
BIS,The Insolvency Service,10/10/2014,Insolvency Case Related Costs,OFFICIAL RECEIVER SERVICES                                                                          ,COMPANIES HOUSE,BA0000280405,53.00,GD255
BIS,The Insolvency Service,13/10/2014,Insolvency Case Related Costs,OFFICIAL RECEIVER SERVICES                                                                          ,COMPANIES HOUSE,BA0000280449,129.00,GD255
BIS,The Insolvency Service,13/10/2014,Insolvency Case Related Costs,OFFICIAL RECEIVER SERVICES                                                                          ,COMPANIES HOUSE,BA0000280451,129.00,GD255
BIS,The Insolvency Service,13/10/2014,Insolvency Case Related Costs,OFFICIAL RECEIVER SERVICES                                                                          ,COMPANIES HOUSE,BA0000280452,100.00,GD255
BIS,The Insolvency Service,14/10/2014,Insolvency Case Related Costs,INVESTIGATIONS & ENFORCEMENT                                                                        ,COMPANIES HOUSE,BA0000280474,297.00,GD255
BIS,The Insolvency Service,14/10/2014,Insolvency Case Related Costs,INVESTIGATIONS & ENFORCEMENT                                                                        ,COMPANIES HOUSE,BA0000280475,23.00,GD255
BIS,The Insolvency Service,14/10/2014,Insolvency Case Related Costs,INVESTIGATIONS & ENFORCEMENT                                                                        ,COMPANIES HOUSE,BA0000280476,952.00,GD255
BIS,The Insolvency Service,14/10/2014,Insolvency Case Related Costs,INVESTIGATIONS & ENFORCEMENT                                                                        ,COMPANIES HOUSE,BA0000280483,892.00,GD255
BIS,The Insolvency Service,14/10/2014,Insolvency Case Related Costs,OFFICIAL RECEIVER SERVICES                                                                          ,COMPANIES HOUSE,BA0000280479,31.00,GD255
BIS,The Insolvency Service,14/10/2014,Insolvency Case Related Costs,OFFICIAL RECEIVER SERVICES                                                                          ,COMPANIES HOUSE,BA0000280481,3.00,GD255
BIS,The Insolvency Service,15/10/2014,Insolvency Case Related Costs,OFFICIAL RECEIVER SERVICES                                                                          ,COMPANIES HOUSE,BA0000280528,25.00,GD255
BIS,The Insolvency Service,15/10/2014,Insolvency Case Related Costs,OFFICIAL RECEIVER SERVICES                                                                          ,COMPANIES HOUSE,BA0000280529,14.00,GD255
BIS,The Insolvency Service,15/10/2014,Insolvency Case Related Costs,OFFICIAL RECEIVER SERVICES                                                                          ,COMPANIES HOUSE,BA0000280530,13.00,GD255
BIS,The Insolvency Service,15/10/2014,Insolvency Case Related Costs,OFFICIAL RECEIVER SERVICES                                                                          ,COMPANIES HOUSE,BA0000280531,39.00,GD255
BIS,The Insolvency Service,16/10/2014,Insolvency Case Related Costs,OFFICIAL RECEIVER SERVICES                                                                          ,COMPANIES HOUSE,BA0000280560,10.00,GD255
BIS,The Insolvency Service,16/10/2014,Insolvency Case Related Costs,OFFICIAL RECEIVER SERVICES                                                                          ,COMPANIES HOUSE,BA0000280561,76.00,GD255
BIS,The Insolvency Service,17/10/2014,Insolvency Case Related Costs,OFFICIAL RECEIVER SERVICES                                                                          ,COMPANIES HOUSE,BA0000280606,36.00,GD255
BIS,The Insolvency Service,21/10/2014,Insolvency Case Related Costs,OFFICIAL RECEIVER SERVICES                                                                          ,COMPANIES HOUSE,BA0000280683,149.00,GD255
BIS,The Insolvency Service,22/10/2014,Insolvency Case Related Costs,OFFICIAL RECEIVER SERVICES                                                                          ,COMPANIES HOUSE,BA0000280724,34.00,GD255
BIS,The Insolvency Service,23/10/2014,Insolvency Case Related Costs,OFFICIAL RECEIVER SERVICES                                                                          ,COMPANIES HOUSE,BA0000280744,4.00,GD255
BIS,The Insolvency Service,29/10/2014,Telecoms,OFFICIAL RECEIVER SERVICES                                                                          ,COMPANIES HOUSE,BA0000280923,509.54,GD255
BIS,The Insolvency Service,30/10/2014,Accommodation,ESTATES,COMPANIES HOUSE,BA0000280956,"16,856.10",GD255
BIS,The Insolvency Service,30/10/2014,Accommodation,ESTATES,COMPANIES HOUSE,BA0000280956,"6,184.45",GD255
BIS,The Insolvency Service,30/10/2014,Accommodation,ESTATES,COMPANIES HOUSE,BA0000280956,"12,766.27",GD255
BIS,The Insolvency Service,03/10/2014,Computer and IT Systems,INFORMATION TECHNOLOGY                                                                              ,COMPUTACENTER (UK) LIMITED,BA0000280185,"12,834.76",490334648
BIS,The Insolvency Service,13/10/2014,Computer and IT Systems,INFORMATION TECHNOLOGY                                                                              ,COMPUTACENTER (UK) LIMITED,BA0000280442,"12,963.40",490334648
BIS,The Insolvency Service,14/10/2014,Accommodation,ESTATES,CORONA ENERGY RETAIL 4 LIMITED,BA0000280468,134.91,714232961
BIS,The Insolvency Service,14/10/2014,Accommodation,ESTATES,CORONA ENERGY RETAIL 4 LIMITED,BA0000280469,68.03,714232961
BIS,The Insolvency Service,14/10/2014,Accommodation,ESTATES,CORONA ENERGY RETAIL 4 LIMITED,BA0000280470,69.14,714232961
BIS,The Insolvency Service,14/10/2014,Accommodation,ESTATES,CORONA ENERGY RETAIL 4 LIMITED,BA0000280471,22.62,714232961
BIS,The Insolvency Service,27/10/2014,Computer and IT Systems,INFORMATION TECHNOLOGY                                                                              ,CREDITSAFE BUSINESS SOLUTIONS LTD,BA0000280859,594.00,751845222
BIS,The Insolvency Service,17/10/2014,Insolvency Case Related Costs,BUSINESS SERVICES DIRECTORATE                                                                       ,DEBT RELEASE DIRECT,BA0000280565,670.00,
BIS,The Insolvency Service,13/10/2014,Accommodation,ESTATES,DEPARTMENT FOR WORK & PENSIONS,BA0000280267,"6,174.85",888815554
BIS,The Insolvency Service,13/10/2014,Accommodation,ESTATES,DEPARTMENT FOR WORK & PENSIONS,BA0000280266,"1,979.41",888815554
BIS,The Insolvency Service,13/10/2014,Accommodation,ESTATES,DEPARTMENT FOR WORK & PENSIONS,BA0000280267,37.27,888815554
BIS,The Insolvency Service,31/10/2014,Conferences,INVESTIGATIONS & ENFORCEMENT                                                                        ,DODS PARLIMENTARY COMMUNICATIONS LTD,BA0000280996,637.20,792067900
BIS,The Insolvency Service,01/10/2014,Insolvency Case Related Costs,OFFICIAL RECEIVER SERVICES                                                                          ,DOLLAR PHOTO CLUB                                           ,BA0000280574,-0.80,
BIS,The Insolvency Service,01/10/2014,Insolvency Case Related Costs,OFFICIAL RECEIVER SERVICES                                                                          ,DOLLAR PHOTO CLUB                                           ,BA0000280574,-0.24,
BIS,The Insolvency Service,01/10/2014,Travel and Subsistence,EXTERNAL AFFAIRS                                                                                    ,DOLLAR PHOTO CLUB                                           ,BA0000280574,21.28,
BIS,The Insolvency Service,07/10/2014,Postage,INFORMATION TECHNOLOGY                                                                              ,DX NETWORK SERVICES LTD,BA0000280247,197.70,849741385
BIS,The Insolvency Service,07/10/2014,Postage,INFORMATION TECHNOLOGY                                                                              ,DX NETWORK SERVICES LTD,BA0000280247,378.59,849741385
BIS,The Insolvency Service,07/10/2014,Postage,OFFICIAL RECEIVER SERVICES                                                                          ,DX NETWORK SERVICES LTD,BA0000280247,43.29,849741385
BIS,The Insolvency Service,07/10/2014,Postage,OFFICIAL RECEIVER SERVICES                                                                          ,DX NETWORK SERVICES LTD,BA0000280247,69.70,849741385
BIS,The Insolvency Service,07/10/2014,Postage,OFFICIAL RECEIVER SERVICES                                                                          ,DX NETWORK SERVICES LTD,BA0000280247,71.90,849741385
BIS,The Insolvency Service,07/10/2014,Postage,OFFICIAL RECEIVER SERVICES                                                                          ,DX NETWORK SERVICES LTD,BA0000280247,106.27,849741385
BIS,The Insolvency Service,07/10/2014,Postage,OFFICIAL RECEIVER SERVICES                                                                          ,DX NETWORK SERVICES LTD,BA0000280247,153.17,849741385
BIS,The Insolvency Service,07/10/2014,Postage,OFFICIAL RECEIVER SERVICES                                                                          ,DX NETWORK SERVICES LTD,BA0000280247,175.41,849741385
BIS,The Insolvency Service,07/10/2014,Postage,OFFICIAL RECEIVER SERVICES                                                                          ,DX NETWORK SERVICES LTD,BA0000280247,201.75,849741385
BIS,The Insolvency Service,07/10/2014,Postage,OFFICIAL RECEIVER SERVICES                                                                          ,DX NETWORK SERVICES LTD,BA0000280247,209.66,849741385
BIS,The Insolvency Service,07/10/2014,Postage,OFFICIAL RECEIVER SERVICES                                                                          ,DX NETWORK SERVICES LTD,BA0000280247,237.00,849741385
BIS,The Insolvency Service,07/10/2014,Postage,OFFICIAL RECEIVER SERVICES                                                                          ,DX NETWORK SERVICES LTD,BA0000280247,255.18,849741385
BIS,The Insolvency Service,07/10/2014,Postage,OFFICIAL RECEIVER SERVICES                                                                          ,DX NETWORK SERVICES LTD,BA0000280247,264.23,849741385
BIS,The Insolvency Service,07/10/2014,Postage,OFFICIAL RECEIVER SERVICES                                                                          ,DX NETWORK SERVICES LTD,BA0000280247,272.22,849741385
BIS,The Insolvency Service,07/10/2014,Postage,OFFICIAL RECEIVER SERVICES                                                                          ,DX NETWORK SERVICES LTD,BA0000280247,275.39,849741385
BIS,The Insolvency Service,07/10/2014,Postage,OFFICIAL RECEIVER SERVICES                                                                          ,DX NETWORK SERVICES LTD,BA0000280247,277.68,849741385
BIS,The Insolvency Service,07/10/2014,Postage,OFFICIAL RECEIVER SERVICES                                                                          ,DX NETWORK SERVICES LTD,BA0000280247,280.61,849741385
BIS,The Insolvency Service,07/10/2014,Postage,OFFICIAL RECEIVER SERVICES                                                                          ,DX NETWORK SERVICES LTD,BA0000280247,308.97,849741385
BIS,The Insolvency Service,07/10/2014,Postage,OFFICIAL RECEIVER SERVICES                                                                          ,DX NETWORK SERVICES LTD,BA0000280247,386.32,849741385
BIS,The Insolvency Service,07/10/2014,Postage,OFFICIAL RECEIVER SERVICES                                                                          ,DX NETWORK SERVICES LTD,BA0000280247,467.21,849741385
BIS,The Insolvency Service,07/10/2014,Postage,OFFICIAL RECEIVER SERVICES                                                                          ,DX NETWORK SERVICES LTD,BA0000280247,553.25,849741385
BIS,The Insolvency Service,07/10/2014,Postage,OFFICIAL RECEIVER SERVICES                                                                          ,DX NETWORK SERVICES LTD,BA0000280247,575.40,849741385
BIS,The Insolvency Service,07/10/2014,Postage,OFFICIAL RECEIVER SERVICES                                                                          ,DX NETWORK SERVICES LTD,BA0000280247,637.07,849741385
BIS,The Insolvency Service,07/10/2014,Postage,OFFICIAL RECEIVER SERVICES                                                                          ,DX NETWORK SERVICES LTD,BA0000280247,685.91,849741385
BIS,The Insolvency Service,07/10/2014,Postage,OFFICIAL RECEIVER SERVICES                                                                          ,DX NETWORK SERVICES LTD,BA0000280247,830.82,849741385
BIS,The Insolvency Service,07/10/2014,Postage,OFFICIAL RECEIVER SERVICES                                                                          ,DX NETWORK SERVICES LTD,BA0000280234,375.00,849741385
BIS,The Insolvency Service,14/10/2014,Office Machinery,OFFICIAL RECEIVER SERVICES                                                                          ,DX NETWORK SERVICES LTD,BA0000280464,"2,050.00",849741385
BIS,The Insolvency Service,14/10/2014,Office Machinery,OFFICIAL RECEIVER SERVICES                                                                          ,DX NETWORK SERVICES LTD,BA0000280465,-998.02,849741385
BIS,The Insolvency Service,21/10/2014,Postage,INFORMATION TECHNOLOGY                                                                              ,DX NETWORK SERVICES LTD,BA0000280685,10.00,849741385
BIS,The Insolvency Service,31/10/2014,Postage,OFFICIAL RECEIVER SERVICES                                                                          ,DX NETWORK SERVICES LTD,BA0000281000,375.00,849741385
BIS,The Insolvency Service,22/10/2014,Accommodation,ESTATES,E.ON ENERGY,BA0000280707,305.39,559097889
BIS,The Insolvency Service,27/10/2014,Accommodation,ESTATES,E.ON ENERGY,BA0000280861,641.73,559097889
BIS,The Insolvency Service,01/10/2014,Training Costs,PEOPLE & CAPABILITY                                                                                 ,EB PYCON UK 2014                                            ,BA0000280574,638.60,
BIS,The Insolvency Service,16/10/2014,Office Supplies and Services,BUSINESS SERVICES DIRECTORATE                                                                       ,EC GROUP,BA0000280548,"1,562.05",235525471
BIS,The Insolvency Service,17/10/2014,Accommodation,OFFICIAL RECEIVER SERVICES                                                                          ,EC GROUP,BA0000280605,346.31,235525471
BIS,The Insolvency Service,03/10/2014,Accommodation,FINANCE AND COMMERCIAL                                                                              ,EC HARRIS LLP,BA0000280171,"2,520.00",660476038
BIS,The Insolvency Service,03/10/2014,Accommodation,FINANCE AND COMMERCIAL                                                                              ,EC HARRIS LLP,BA0000280172,"5,040.00",660476038
BIS,The Insolvency Service,03/10/2014,Accommodation,FINANCE AND COMMERCIAL                                                                              ,EC HARRIS LLP,BA0000280173,"3,300.00",660476038
BIS,The Insolvency Service,03/10/2014,Accommodation,FINANCE AND COMMERCIAL                                                                              ,EC HARRIS LLP,BA0000280174,"3,000.00",660476038
BIS,The Insolvency Service,03/10/2014,Accommodation,FINANCE AND COMMERCIAL                                                                              ,EC HARRIS LLP,BA0000280175,"4,590.00",660476038
BIS,The Insolvency Service,03/10/2014,Accommodation,FINANCE AND COMMERCIAL                                                                              ,EC HARRIS LLP,BA0000280177,"4,230.00",660476038
BIS,The Insolvency Service,03/10/2014,Accommodation,FINANCE AND COMMERCIAL                                                                              ,EC HARRIS LLP,BA0000280178,"4,590.00",660476038
BIS,The Insolvency Service,03/10/2014,Accommodation,FINANCE AND COMMERCIAL                                                                              ,EC HARRIS LLP,BA0000280166,"5,011.54",660476038
BIS,The Insolvency Service,03/10/2014,Accommodation,FINANCE AND COMMERCIAL                                                                              ,EC HARRIS LLP,BA0000280186,"2,520.00",660476038
BIS,The Insolvency Service,28/10/2014,Accommodation,FINANCE AND COMMERCIAL                                                                              ,EC HARRIS LLP,BA0000280906,"3,060.00",660476038
BIS,The Insolvency Service,28/10/2014,Accommodation,FINANCE AND COMMERCIAL                                                                              ,EC HARRIS LLP,BA0000280907,"6,120.00",660476038
BIS,The Insolvency Service,28/10/2014,Accommodation,FINANCE AND COMMERCIAL                                                                              ,EC HARRIS LLP,BA0000280908,"3,360.00",660476038
BIS,The Insolvency Service,28/10/2014,Accommodation,FINANCE AND COMMERCIAL                                                                              ,EC HARRIS LLP,BA0000280909,"4,230.00",660476038
BIS,The Insolvency Service,28/10/2014,Accommodation,FINANCE AND COMMERCIAL                                                                              ,EC HARRIS LLP,BA0000280910,"3,000.00",660476038
BIS,The Insolvency Service,28/10/2014,Accommodation,FINANCE AND COMMERCIAL                                                                              ,EC HARRIS LLP,BA0000280911,"2,520.00",660476038
BIS,The Insolvency Service,28/10/2014,Accommodation,FINANCE AND COMMERCIAL                                                                              ,EC HARRIS LLP,BA0000280912,"3,000.00",660476038
BIS,The Insolvency Service,28/10/2014,Accommodation,FINANCE AND COMMERCIAL                                                                              ,EC HARRIS LLP,BA0000280913,"3,720.00",660476038
BIS,The Insolvency Service,06/10/2014,Conferences,BUSINESS SERVICES DIRECTORATE                                                                       ,EEF LTD                                                     ,BA0000280217,922.56,941811727
BIS,The Insolvency Service,01/10/2014,Accommodation,OFFICIAL RECEIVER SERVICES                                                                          ,ELITEINDUSTRIAL                                             ,BA0000280574,168.31,
BIS,The Insolvency Service,01/10/2014,Travel and Subsistence,BUSINESS SERVICES DIRECTORATE                                                                       ,EMPARK                                                      ,BA0000280574,32.99,
BIS,The Insolvency Service,22/10/2014,Legal Costs,FINANCE AND COMMERCIAL                                                                              ,EVERSHEDS  LLP (LEEDS),BA0000280705,688.20,820704559
BIS,The Insolvency Service,14/10/2014,Accommodation,ESTATES,F&C REIT ASSET MANAGEMENT PLC,BA0000280458,"1,195.94",209938729
BIS,The Insolvency Service,17/10/2014,Accommodation,ESTATES,F&C REIT ASSET MANAGEMENT PLC,BA0000280589,"2,198.45",209938729
BIS,The Insolvency Service,01/10/2014,Telecoms,BUSINESS SERVICES DIRECTORATE                                                                       ,FASTHOSTS INTERNET,BA0000280574,105.91,
BIS,The Insolvency Service,01/10/2014,Travel and Subsistence,OFFICIAL RECEIVER SERVICES                                                                          ,FGW E STDO,BA0000280574,69.00,
BIS,The Insolvency Service,01/10/2014,Travel and Subsistence,INVESTIGATIONS & ENFORCEMENT                                                                        ,FGW E STDO,BA0000280574,32.10,
BIS,The Insolvency Service,09/10/2014,Computer and IT Systems,INVESTIGATIONS & ENFORCEMENT                                                                        ,FIRST FORENSIC FORUM,BA0000280355,205.00,
BIS,The Insolvency Service,01/10/2014,Travel and Subsistence,INVESTIGATIONS & ENFORCEMENT                                                                        ,FIRST GTR WESTERN,BA0000280574,11.00,
BIS,The Insolvency Service,01/10/2014,Travel and Subsistence,INVESTIGATIONS & ENFORCEMENT                                                                        ,FIRST GTR WESTERN,BA0000280574,14.90,
BIS,The Insolvency Service,21/10/2014,Accommodation,OFFICIAL RECEIVER SERVICES                                                                          ,FRANK G. BOWEN LTD,BA0000280682,75.60,238504366
BIS,The Insolvency Service,22/10/2014,Insolvency Case Related Costs,OFFICIAL RECEIVER SERVICES                                                                          ,FRANK G. BOWEN LTD,BA0000280711,75.60,238504366
BIS,The Insolvency Service,22/10/2014,Insolvency Case Related Costs,OFFICIAL RECEIVER SERVICES                                                                          ,FRANK G. BOWEN LTD,BA0000280712,75.60,238504366
BIS,The Insolvency Service,22/10/2014,Insolvency Case Related Costs,OFFICIAL RECEIVER SERVICES                                                                          ,FRANK G. BOWEN LTD,BA0000280713,75.60,238504366
BIS,The Insolvency Service,22/10/2014,Insolvency Case Related Costs,OFFICIAL RECEIVER SERVICES                                                                          ,FRANK G. BOWEN LTD,BA0000280714,48.00,238504366
BIS,The Insolvency Service,22/10/2014,Insolvency Case Related Costs,OFFICIAL RECEIVER SERVICES                                                                          ,FRANK G. BOWEN LTD,BA0000280715,75.60,238504366
BIS,The Insolvency Service,22/10/2014,Insolvency Case Related Costs,OFFICIAL RECEIVER SERVICES                                                                          ,FRANK G. BOWEN LTD,BA0000280716,48.00,238504366
BIS,The Insolvency Service,22/10/2014,Insolvency Case Related Costs,OFFICIAL RECEIVER SERVICES                                                                          ,FRANK G. BOWEN LTD,BA0000280717,75.60,238504366
BIS,The Insolvency Service,22/10/2014,Insolvency Case Related Costs,OFFICIAL RECEIVER SERVICES                                                                          ,FRANK G. BOWEN LTD,BA0000280718,75.60,238504366
BIS,The Insolvency Service,22/10/2014,Insolvency Case Related Costs,OFFICIAL RECEIVER SERVICES                                                                          ,FRANK G. BOWEN LTD,BA0000280719,75.60,238504366
BIS,The Insolvency Service,15/10/2014,Investigation and Enforcement Costs,INVESTIGATIONS & ENFORCEMENT                                                                        ,FTI CONSULTING LLP,BA0000280504,"5,046.50",867255490
BIS,The Insolvency Service,03/10/2014,Agency Workers,FINANCE AND COMMERCIAL                                                                              ,G P ABBERLEY                                                ,BA0000280153,40.00,
BIS,The Insolvency Service,13/10/2014,Telecoms,BUSINESS SERVICES DIRECTORATE                                                                       ,GAMMA BUSINESS COMMUNICATIONS LTD,BA0000280437,39.31,823820344
BIS,The Insolvency Service,13/10/2014,Telecoms,BUSINESS SERVICES DIRECTORATE                                                                       ,GAMMA BUSINESS COMMUNICATIONS LTD,BA0000280437,134.14,823820344
BIS,The Insolvency Service,13/10/2014,Telecoms,FINANCE AND COMMERCIAL                                                                              ,GAMMA BUSINESS COMMUNICATIONS LTD,BA0000280437,635.56,823820344
BIS,The Insolvency Service,13/10/2014,Telecoms,INFORMATION TECHNOLOGY                                                                              ,GAMMA BUSINESS COMMUNICATIONS LTD,BA0000280437,128.67,823820344
BIS,The Insolvency Service,13/10/2014,Telecoms,OFFICIAL RECEIVER SERVICES                                                                          ,GAMMA BUSINESS COMMUNICATIONS LTD,BA0000280437,35.04,823820344
BIS,The Insolvency Service,13/10/2014,Telecoms,OFFICIAL RECEIVER SERVICES                                                                          ,GAMMA BUSINESS COMMUNICATIONS LTD,BA0000280437,50.94,823820344
BIS,The Insolvency Service,13/10/2014,Telecoms,OFFICIAL RECEIVER SERVICES                                                                          ,GAMMA BUSINESS COMMUNICATIONS LTD,BA0000280437,61.27,823820344
BIS,The Insolvency Service,13/10/2014,Telecoms,OFFICIAL RECEIVER SERVICES                                                                          ,GAMMA BUSINESS COMMUNICATIONS LTD,BA0000280437,74.46,823820344
BIS,The Insolvency Service,13/10/2014,Telecoms,OFFICIAL RECEIVER SERVICES                                                                          ,GAMMA BUSINESS COMMUNICATIONS LTD,BA0000280437,82.80,823820344
BIS,The Insolvency Service,13/10/2014,Telecoms,OFFICIAL RECEIVER SERVICES                                                                          ,GAMMA BUSINESS COMMUNICATIONS LTD,BA0000280437,87.32,823820344
BIS,The Insolvency Service,13/10/2014,Telecoms,OFFICIAL RECEIVER SERVICES                                                                          ,GAMMA BUSINESS COMMUNICATIONS LTD,BA0000280437,90.88,823820344
BIS,The Insolvency Service,13/10/2014,Telecoms,OFFICIAL RECEIVER SERVICES                                                                          ,GAMMA BUSINESS COMMUNICATIONS LTD,BA0000280437,106.46,823820344
BIS,The Insolvency Service,13/10/2014,Telecoms,OFFICIAL RECEIVER SERVICES                                                                          ,GAMMA BUSINESS COMMUNICATIONS LTD,BA0000280437,124.62,823820344
BIS,The Insolvency Service,13/10/2014,Telecoms,OFFICIAL RECEIVER SERVICES                                                                          ,GAMMA BUSINESS COMMUNICATIONS LTD,BA0000280437,162.03,823820344
BIS,The Insolvency Service,13/10/2014,Telecoms,OFFICIAL RECEIVER SERVICES                                                                          ,GAMMA BUSINESS COMMUNICATIONS LTD,BA0000280437,188.06,823820344
BIS,The Insolvency Service,13/10/2014,Telecoms,OFFICIAL RECEIVER SERVICES                                                                          ,GAMMA BUSINESS COMMUNICATIONS LTD,BA0000280437,249.14,823820344
BIS,The Insolvency Service,13/10/2014,Telecoms,OFFICIAL RECEIVER SERVICES                                                                          ,GAMMA BUSINESS COMMUNICATIONS LTD,BA0000280437,271.24,823820344
BIS,The Insolvency Service,13/10/2014,Telecoms,OFFICIAL RECEIVER SERVICES                                                                          ,GAMMA BUSINESS COMMUNICATIONS LTD,BA0000280437,279.07,823820344
BIS,The Insolvency Service,13/10/2014,Telecoms,OFFICIAL RECEIVER SERVICES                                                                          ,GAMMA BUSINESS COMMUNICATIONS LTD,BA0000280437,331.00,823820344
BIS,The Insolvency Service,13/10/2014,Telecoms,OFFICIAL RECEIVER SERVICES                                                                          ,GAMMA BUSINESS COMMUNICATIONS LTD,BA0000280437,407.73,823820344
BIS,The Insolvency Service,22/10/2014,Investigation and Enforcement Costs,CUSTOMER AND COMMUNICATIONS                                                                         ,GORKANA GROUP LTD                                           ,BA0000280730,"4,800.00",757158012
BIS,The Insolvency Service,14/10/2014,Investigation and Enforcement Costs,CUSTOMER AND COMMUNICATIONS                                                                         ,GOVDELIVERY INC                                             ,BA0000280336,717.60,
BIS,The Insolvency Service,14/10/2014,Investigation and Enforcement Costs,CUSTOMER AND COMMUNICATIONS                                                                         ,GOVDELIVERY INC                                             ,BA0000280337,717.60,
BIS,The Insolvency Service,14/10/2014,Investigation and Enforcement Costs,CUSTOMER AND COMMUNICATIONS                                                                         ,GOVDELIVERY INC                                             ,BA0000280338,717.60,
BIS,The Insolvency Service,14/10/2014,Investigation and Enforcement Costs,CUSTOMER AND COMMUNICATIONS                                                                         ,GOVDELIVERY INC                                             ,BA0000280339,717.60,
BIS,The Insolvency Service,07/10/2014,Investigation and Enforcement Costs,INVESTIGATIONS & ENFORCEMENT                                                                        ,GRANT THORNTON,BA0000280248,"14,205.00",835586102
BIS,The Insolvency Service,01/10/2014,Travel and Subsistence,OFFICIAL RECEIVER SERVICES                                                                          ,GREATER ANGLIA RAILWAY                                      ,BA0000280574,38.60,
BIS,The Insolvency Service,23/10/2014,Accommodation,OFFICIAL RECEIVER SERVICES                                                                          ,GREENHAM TRADING LTD,BA0000280748,56.54,823820932
BIS,The Insolvency Service,03/10/2014,Office Supplies and Services,INFORMATION TECHNOLOGY                                                                              ,HAGUE COMPUTER SUPPLIES,BA0000280167,"1,074.00",333613774
BIS,The Insolvency Service,03/10/2014,Office Supplies and Services,INFORMATION TECHNOLOGY                                                                              ,HAGUE COMPUTER SUPPLIES,BA0000280149,831.60,333613774
BIS,The Insolvency Service,06/10/2014,Computer and IT Systems,INFORMATION TECHNOLOGY                                                                              ,HAGUE COMPUTER SUPPLIES,BA0000280218,"1,353.00",333613774
BIS,The Insolvency Service,06/10/2014,Computer and IT Systems,INFORMATION TECHNOLOGY                                                                              ,HAGUE COMPUTER SUPPLIES,BA0000280219,"1,089.43",333613774
BIS,The Insolvency Service,17/10/2014,Office Supplies and Services,FINANCE AND COMMERCIAL,HAGUE COMPUTER SUPPLIES,BA0000280579,414.00,333613774
BIS,The Insolvency Service,17/10/2014,Office Supplies and Services,FINANCE AND COMMERCIAL,HAGUE COMPUTER SUPPLIES,BA0000280579,"5,022.00",333613774
BIS,The Insolvency Service,08/10/2014,Agency Workers,BUSINESS SERVICES DIRECTORATE                                                                       ,HAYS SPECIALIST RECRUITMENT LTD,BA0000280278,95.50,773695871
BIS,The Insolvency Service,08/10/2014,Agency Workers,BUSINESS SERVICES DIRECTORATE                                                                       ,HAYS SPECIALIST RECRUITMENT LTD,BA0000280279,559.02,773695871
BIS,The Insolvency Service,08/10/2014,Agency Workers,BUSINESS SERVICES DIRECTORATE                                                                       ,HAYS SPECIALIST RECRUITMENT LTD,BA0000280282,339.95,773695871
BIS,The Insolvency Service,08/10/2014,Agency Workers,BUSINESS SERVICES DIRECTORATE                                                                       ,HAYS SPECIALIST RECRUITMENT LTD,BA0000280285,292.07,773695871
BIS,The Insolvency Service,08/10/2014,Agency Workers,BUSINESS SERVICES DIRECTORATE                                                                       ,HAYS SPECIALIST RECRUITMENT LTD,BA0000280286,297.02,773695871
BIS,The Insolvency Service,08/10/2014,Agency Workers,BUSINESS SERVICES DIRECTORATE                                                                       ,HAYS SPECIALIST RECRUITMENT LTD,BA0000280287,297.02,773695871
BIS,The Insolvency Service,08/10/2014,Agency Workers,BUSINESS SERVICES DIRECTORATE                                                                       ,HAYS SPECIALIST RECRUITMENT LTD,BA0000280289,471.10,773695871
BIS,The Insolvency Service,08/10/2014,Agency Workers,BUSINESS SERVICES DIRECTORATE                                                                       ,HAYS SPECIALIST RECRUITMENT LTD,BA0000280291,339.07,773695871
BIS,The Insolvency Service,08/10/2014,Agency Workers,BUSINESS SERVICES DIRECTORATE                                                                       ,HAYS SPECIALIST RECRUITMENT LTD,BA0000280292,309.38,773695871
BIS,The Insolvency Service,08/10/2014,Agency Workers,BUSINESS SERVICES DIRECTORATE                                                                       ,HAYS SPECIALIST RECRUITMENT LTD,BA0000280293,453.26,773695871
BIS,The Insolvency Service,08/10/2014,Agency Workers,BUSINESS SERVICES DIRECTORATE                                                                       ,HAYS SPECIALIST RECRUITMENT LTD,BA0000280294,559.02,773695871
BIS,The Insolvency Service,08/10/2014,Agency Workers,OFFICIAL RECEIVER SERVICES                                                                          ,HAYS SPECIALIST RECRUITMENT LTD,BA0000280277,332.39,773695871
BIS,The Insolvency Service,08/10/2014,Agency Workers,OFFICIAL RECEIVER SERVICES                                                                          ,HAYS SPECIALIST RECRUITMENT LTD,BA0000280280,381.98,773695871
BIS,The Insolvency Service,08/10/2014,Agency Workers,OFFICIAL RECEIVER SERVICES                                                                          ,HAYS SPECIALIST RECRUITMENT LTD,BA0000280281,477.48,773695871
BIS,The Insolvency Service,08/10/2014,Agency Workers,OFFICIAL RECEIVER SERVICES                                                                          ,HAYS SPECIALIST RECRUITMENT LTD,BA0000280283,381.98,773695871
BIS,The Insolvency Service,08/10/2014,Agency Workers,OFFICIAL RECEIVER SERVICES                                                                          ,HAYS SPECIALIST RECRUITMENT LTD,BA0000280284,453.26,773695871
BIS,The Insolvency Service,08/10/2014,Agency Workers,OFFICIAL RECEIVER SERVICES                                                                          ,HAYS SPECIALIST RECRUITMENT LTD,BA0000280288,453.26,773695871
BIS,The Insolvency Service,08/10/2014,Agency Workers,OFFICIAL RECEIVER SERVICES                                                                          ,HAYS SPECIALIST RECRUITMENT LTD,BA0000280290,277.22,773695871
BIS,The Insolvency Service,08/10/2014,Agency Workers,OFFICIAL RECEIVER SERVICES                                                                          ,HAYS SPECIALIST RECRUITMENT LTD,BA0000280295,339.95,773695871
BIS,The Insolvency Service,03/10/2014,Employee Related Costs,PEOPLE & CAPABILITY                                                                                 ,HEALTH MANAGEMENT LTD,BA0000280179,"1,670.00",792250621
BIS,The Insolvency Service,03/10/2014,Employee Related Costs,PEOPLE & CAPABILITY                                                                                 ,HEALTH MANAGEMENT LTD,BA0000280146,277.45,792250621
BIS,The Insolvency Service,02/10/2014,Accommodation,ESTATES,HM LAND REGISTRY,BA0000280086,"1,249.18",
BIS,The Insolvency Service,02/10/2014,Accommodation,ESTATES,HM LAND REGISTRY,BA0000280086,557.54,
BIS,The Insolvency Service,02/10/2014,Accommodation,ESTATES,HM LAND REGISTRY,BA0000280086,837.12,
BIS,The Insolvency Service,01/10/2014,Investigation and Enforcement Costs,OFFICIAL RECEIVER SERVICES                                                                          ,HMCTS,BA0000280009,280.00,
BIS,The Insolvency Service,09/10/2014,Investigation and Enforcement Costs,OFFICIAL RECEIVER SERVICES                                                                          ,HMCTS,BA0000280324,280.00,
BIS,The Insolvency Service,09/10/2014,Investigation and Enforcement Costs,OFFICIAL RECEIVER SERVICES                                                                          ,HMCTS,BA0000280325,480.00,
BIS,The Insolvency Service,15/10/2014,Investigation and Enforcement Costs,OFFICIAL RECEIVER SERVICES                                                                          ,HMCTS,BA0000280482,280.00,
BIS,The Insolvency Service,15/10/2014,Investigation and Enforcement Costs,OFFICIAL RECEIVER SERVICES                                                                          ,HMCTS,BA0000280523,480.00,
BIS,The Insolvency Service,15/10/2014,Investigation and Enforcement Costs,OFFICIAL RECEIVER SERVICES                                                                          ,HMCTS,BA0000280485,280.00,
BIS,The Insolvency Service,17/10/2014,Investigation and Enforcement Costs,OFFICIAL RECEIVER SERVICES                                                                          ,HMCTS,BA0000280620,280.00,
BIS,The Insolvency Service,23/10/2014,Investigation and Enforcement Costs,OFFICIAL RECEIVER SERVICES                                                                          ,HMCTS,BA0000280686,480.00,
BIS,The Insolvency Service,23/10/2014,Investigation and Enforcement Costs,OFFICIAL RECEIVER SERVICES                                                                          ,HMCTS,BA0000280742,280.00,
BIS,The Insolvency Service,31/10/2014,Investigation and Enforcement Costs,OFFICIAL RECEIVER SERVICES                                                                          ,HMCTS,BA0000280972,480.00,
BIS,The Insolvency Service,31/10/2014,Investigation and Enforcement Costs,OFFICIAL RECEIVER SERVICES                                                                          ,HMCTS,BA0000280860,280.00,
BIS,The Insolvency Service,17/10/2014,Insolvency Case Related Costs,FINANCE AND COMMERCIAL,HMCTS                                                       ,BA0000280616,160.00,
BIS,The Insolvency Service,10/10/2014,Employee Related Costs,PEOPLE & CAPABILITY                                                                                 ,HMRC,BA0000280391,"2,907.30",888848141
BIS,The Insolvency Service,31/10/2014,Department for Business Innovation and Skills,PEOPLE & CAPABILITY                                                                                 ,HMRC,BA0000281015,"4,890.67",888848141
BIS,The Insolvency Service,31/10/2014,Employee Related Costs,PEOPLE & CAPABILITY                                                                                 ,HMRC,BA0000281015,"20,382.47",888848141
BIS,The Insolvency Service,01/10/2014,Travel and Subsistence,OFFICIAL RECEIVER SERVICES                                                                          ,HOLIDAY INN - MILTON KEYNES,BA0000280574,5.00,507943924
BIS,The Insolvency Service,01/10/2014,Travel and Subsistence,OFFICIAL RECEIVER SERVICES                                                                          ,HOLIDAY INN - MILTON KEYNES,BA0000280574,6.00,507943924
BIS,The Insolvency Service,07/10/2014,Conferences,OFFICIAL RECEIVER SERVICES                                                                          ,HOLIDAY INN - MILTON KEYNES,BA0000280250,"6,426.00",507943924
BIS,The Insolvency Service,07/10/2014,Conferences,OFFICIAL RECEIVER SERVICES                                                                          ,HOLIDAY INN - MILTON KEYNES,BA0000280239,-25.00,507943924
BIS,The Insolvency Service,03/10/2014,Investigation and Enforcement Costs,INVESTIGATIONS & ENFORCEMENT                                                                        ,HOWES PERCIVAL,BA0000280168,"9,042.00",119523573
BIS,The Insolvency Service,03/10/2014,Investigation and Enforcement Costs,INVESTIGATIONS & ENFORCEMENT                                                                        ,HOWES PERCIVAL,BA0000280169,3.00,119523573
BIS,The Insolvency Service,03/10/2014,Investigation and Enforcement Costs,INVESTIGATIONS & ENFORCEMENT                                                                        ,HOWES PERCIVAL,BA0000280169,"22,644.25",119523573
BIS,The Insolvency Service,03/10/2014,Investigation and Enforcement Costs,INVESTIGATIONS & ENFORCEMENT                                                                        ,HOWES PERCIVAL,BA0000280170,"11,886.69",119523573
BIS,The Insolvency Service,07/10/2014,Investigation and Enforcement Costs,INVESTIGATIONS & ENFORCEMENT                                                                        ,HOWES PERCIVAL,BA0000280236,462.20,119523573
BIS,The Insolvency Service,07/10/2014,Investigation and Enforcement Costs,INVESTIGATIONS & ENFORCEMENT                                                                        ,HOWES PERCIVAL,BA0000280249,"8,628.05",119523573
BIS,The Insolvency Service,08/10/2014,Investigation and Enforcement Costs,INVESTIGATIONS & ENFORCEMENT                                                                        ,HOWES PERCIVAL,BA0000280260,"3,093.15",119523573
BIS,The Insolvency Service,09/10/2014,Investigation and Enforcement Costs,INVESTIGATIONS & ENFORCEMENT                                                                        ,HOWES PERCIVAL,BA0000280357,"2,207.30",119523573
BIS,The Insolvency Service,09/10/2014,Investigation and Enforcement Costs,INVESTIGATIONS & ENFORCEMENT                                                                        ,HOWES PERCIVAL,BA0000280367,"19,234.10",119523573
BIS,The Insolvency Service,09/10/2014,Investigation and Enforcement Costs,INVESTIGATIONS & ENFORCEMENT                                                                        ,HOWES PERCIVAL,BA0000280358,"28,151.36",119523573
BIS,The Insolvency Service,09/10/2014,Investigation and Enforcement Costs,INVESTIGATIONS & ENFORCEMENT                                                                        ,HOWES PERCIVAL,BA0000280359,"17,629.03",119523573
BIS,The Insolvency Service,09/10/2014,Investigation and Enforcement Costs,INVESTIGATIONS & ENFORCEMENT                                                                        ,HOWES PERCIVAL,BA0000280360,"4,192.00",119523573
BIS,The Insolvency Service,09/10/2014,Investigation and Enforcement Costs,INVESTIGATIONS & ENFORCEMENT                                                                        ,HOWES PERCIVAL,BA0000280361,"9,138.57",119523573
BIS,The Insolvency Service,14/10/2014,Investigation and Enforcement Costs,INVESTIGATIONS & ENFORCEMENT                                                                        ,HOWES PERCIVAL,BA0000280484,499.03,119523573
BIS,The Insolvency Service,06/10/2014,Insolvency Case Related Costs,OFFICIAL RECEIVER SERVICES                                                                          ,HPI LTD,BA0000280215,93.52,942407139
BIS,The Insolvency Service,09/10/2014,Insolvency Case Related Costs,OFFICIAL RECEIVER SERVICES                                                                          ,HPI LTD,BA0000280347,28.60,942407139
BIS,The Insolvency Service,10/10/2014,Insolvency Case Related Costs,OFFICIAL RECEIVER SERVICES                                                                          ,HPI LTD,BA0000280377,27.96,942407139
BIS,The Insolvency Service,30/10/2014,Insolvency Case Related Costs,OFFICIAL RECEIVER SERVICES                                                                          ,HPI LTD,BA0000280960,11.74,942407139
BIS,The Insolvency Service,30/10/2014,Insolvency Case Related Costs,OFFICIAL RECEIVER SERVICES                                                                          ,HPI LTD,BA0000280961,16.48,942407139
BIS,The Insolvency Service,30/10/2014,Insolvency Case Related Costs,OFFICIAL RECEIVER SERVICES                                                                          ,HPI LTD,BA0000280963,17.14,942407139
BIS,The Insolvency Service,01/10/2014,Travel and Subsistence,FINANCE AND COMMERCIAL,HRG UK,BA0000280574,62.00,
BIS,The Insolvency Service,01/10/2014,Travel and Subsistence,FINANCE AND COMMERCIAL,HRG UK,BA0000280574,14.91,
BIS,The Insolvency Service,01/10/2014,Travel and Subsistence,FINANCE AND COMMERCIAL,HRG UK,BA0000280574,59.00,
BIS,The Insolvency Service,01/10/2014,Travel and Subsistence,FINANCE AND COMMERCIAL,HRG UK,BA0000280574,40.78,
BIS,The Insolvency Service,01/10/2014,Travel and Subsistence,FINANCE AND COMMERCIAL,HRG UK,BA0000280574,201.00,
BIS,The Insolvency Service,01/10/2014,Travel and Subsistence,FINANCE AND COMMERCIAL,HRG UK,BA0000280574,125.00,
BIS,The Insolvency Service,01/10/2014,Travel and Subsistence,FINANCE AND COMMERCIAL,HRG UK,BA0000280574,5.37,
BIS,The Insolvency Service,01/10/2014,Travel and Subsistence,FINANCE AND COMMERCIAL,HRG UK,BA0000280574,6.33,
BIS,The Insolvency Service,01/10/2014,Travel and Subsistence,FINANCE AND COMMERCIAL,HRG UK,BA0000280574,-125.00,
BIS,The Insolvency Service,01/10/2014,Travel and Subsistence,FINANCE AND COMMERCIAL,HRG UK,BA0000280574,6.23,
BIS,The Insolvency Service,01/10/2014,Travel and Subsistence,FINANCE AND COMMERCIAL,HRG UK,BA0000280574,185.39,
BIS,The Insolvency Service,01/10/2014,Travel and Subsistence,FINANCE AND COMMERCIAL,HRG UK,BA0000280574,67.00,
BIS,The Insolvency Service,01/10/2014,Travel and Subsistence,FINANCE AND COMMERCIAL,HRG UK,BA0000280574,120.00,
BIS,The Insolvency Service,01/10/2014,Travel and Subsistence,FINANCE AND COMMERCIAL,HRG UK,BA0000280574,124.00,
BIS,The Insolvency Service,03/10/2014,Agency Workers,FINANCE AND COMMERCIAL,HUDSON GLOBAL RESOURCES LTD,BA0000280181,"2,247.36",
BIS,The Insolvency Service,10/10/2014,Agency Workers,FINANCE AND COMMERCIAL,HUDSON GLOBAL RESOURCES LTD,BA0000280392,"2,247.36",
BIS,The Insolvency Service,17/10/2014,Agency Workers,FINANCE AND COMMERCIAL,HUDSON GLOBAL RESOURCES LTD,BA0000280603,"1,797.89",
BIS,The Insolvency Service,27/10/2014,Agency Workers,FINANCE AND COMMERCIAL,HUDSON GLOBAL RESOURCES LTD,BA0000280841,"2,247.36",
BIS,The Insolvency Service,31/10/2014,Agency Workers,FINANCE AND COMMERCIAL,HUDSON GLOBAL RESOURCES LTD,BA0000281017,"1,407.22",
BIS,The Insolvency Service,06/10/2014,Insolvency Case Related Costs,FINANCE AND COMMERCIAL,INSOLVENCY SERVICE,BA0000280204,"15,000.29",
BIS,The Insolvency Service,09/10/2014,Insolvency Case Related Costs,FINANCE AND COMMERCIAL,INSOLVENCY SERVICE,BA0000280340,460.00,
BIS,The Insolvency Service,13/10/2014,Insolvency Case Related Costs,OFFICIAL RECEIVER SERVICES                                                                          ,INSOLVENCY SERVICE,BA0000280453,20.00,
BIS,The Insolvency Service,17/10/2014,Insolvency Case Related Costs,FINANCE AND COMMERCIAL,INSOLVENCY SERVICE,BA0000280608,120.00,
BIS,The Insolvency Service,17/10/2014,Insolvency Case Related Costs,FINANCE AND COMMERCIAL,INSOLVENCY SERVICE,BA0000280609,255.88,
BIS,The Insolvency Service,21/10/2014,Insolvency Case Related Costs,OFFICIAL RECEIVER SERVICES                                                                          ,INSOLVENCY SERVICE,BA0000280684,60.00,
BIS,The Insolvency Service,27/10/2014,Insolvency Case Related Costs,OFFICIAL RECEIVER SERVICES                                                                          ,INSOLVENCY SERVICE,BA0000280862,20.00,
BIS,The Insolvency Service,29/10/2014,Accounting and Banking,BUSINESS SERVICES DIRECTORATE                                                                       ,INSOLVENCY SERVICE,BA0000280940,30.00,
BIS,The Insolvency Service,30/10/2014,Insolvency Case Related Costs,FINANCE AND COMMERCIAL,INSOLVENCY SERVICE,BA0000280962,644.00,
BIS,The Insolvency Service,08/10/2014,Accommodation,BUSINESS SERVICES DIRECTORATE                                                                       ,IRON MOUNTAIN (UK) LTD,BA0000280264,"1,909.19",607937516
BIS,The Insolvency Service,08/10/2014,Accommodation,CUSTOMER AND COMMUNICATIONS                                                                         ,IRON MOUNTAIN (UK) LTD,BA0000280264,1.47,607937516
BIS,The Insolvency Service,08/10/2014,Accommodation,EXTERNAL AFFAIRS                                                                                    ,IRON MOUNTAIN (UK) LTD,BA0000280264,252.98,607937516
BIS,The Insolvency Service,08/10/2014,Accommodation,FINANCE AND COMMERCIAL,IRON MOUNTAIN (UK) LTD,BA0000280264,437.70,607937516
BIS,The Insolvency Service,08/10/2014,Accommodation,FINANCE AND COMMERCIAL,IRON MOUNTAIN (UK) LTD,BA0000280275,-437.70,607937516
BIS,The Insolvency Service,08/10/2014,Accommodation,INFORMATION TECHNOLOGY                                                                              ,IRON MOUNTAIN (UK) LTD,BA0000280264,185.07,607937516
BIS,The Insolvency Service,08/10/2014,Accommodation,INVESTIGATIONS & ENFORCEMENT                                                                        ,IRON MOUNTAIN (UK) LTD,BA0000280264,"2,964.48",607937516
BIS,The Insolvency Service,08/10/2014,Accommodation,PEOPLE & CAPABILITY                                                                                 ,IRON MOUNTAIN (UK) LTD,BA0000280264,143.42,607937516
BIS,The Insolvency Service,08/10/2014,Accommodation,OFFICIAL RECEIVER SERVICES                                                                          ,IRON MOUNTAIN (UK) LTD,BA0000280264,"29,562.43",607937516
BIS,The Insolvency Service,08/10/2014,Accommodation,OFFICIAL RECEIVER SERVICES                                                                          ,IRON MOUNTAIN (UK) LTD,BA0000280275,-209.26,607937516
BIS,The Insolvency Service,08/10/2014,Accommodation,OFFICIAL RECEIVER SERVICES                                                                          ,IRON MOUNTAIN (UK) LTD,BA0000280276,-133.18,607937516
BIS,The Insolvency Service,15/10/2014,Accommodation,BUSINESS SERVICES DIRECTORATE                                                                       ,IRON MOUNTAIN (UK) LTD,BA0000280526,"2,388.18",607937516
BIS,The Insolvency Service,15/10/2014,Accommodation,CUSTOMER AND COMMUNICATIONS                                                                         ,IRON MOUNTAIN (UK) LTD,BA0000280526,1.46,607937516
BIS,The Insolvency Service,15/10/2014,Accommodation,EXTERNAL AFFAIRS                                                                                    ,IRON MOUNTAIN (UK) LTD,BA0000280526,244.20,607937516
BIS,The Insolvency Service,15/10/2014,Accommodation,INFORMATION TECHNOLOGY                                                                              ,IRON MOUNTAIN (UK) LTD,BA0000280526,268.90,607937516
BIS,The Insolvency Service,15/10/2014,Accommodation,INVESTIGATIONS & ENFORCEMENT                                                                        ,IRON MOUNTAIN (UK) LTD,BA0000280526,"2,870.24",607937516
BIS,The Insolvency Service,15/10/2014,Accommodation,PEOPLE & CAPABILITY                                                                                 ,IRON MOUNTAIN (UK) LTD,BA0000280526,75.03,607937516
BIS,The Insolvency Service,15/10/2014,Accommodation,OFFICIAL RECEIVER SERVICES                                                                          ,IRON MOUNTAIN (UK) LTD,BA0000280526,"28,034.21",607937516
BIS,The Insolvency Service,27/10/2014,Accommodation,FINANCE AND COMMERCIAL                                                                              ,JOHNSONS MOVING SERVICES LTD                                ,BA0000280851,413.40,813052765
BIS,The Insolvency Service,30/10/2014,Accommodation,FINANCE AND COMMERCIAL                                                                              ,JOHNSONS MOVING SERVICES LTD                                ,BA0000280955,"1,040.20",813052765
BIS,The Insolvency Service,10/10/2014,Accommodation,ESTATES,JONES LANG LASALLE,BA0000280394,"7,020.00",245894718
BIS,The Insolvency Service,10/10/2014,Accommodation,ESTATES,JONES LANG LASALLE,BA0000280396,"3,960.00",245894718
BIS,The Insolvency Service,10/10/2014,Accommodation,FINANCE AND COMMERCIAL                                                                              ,JONES LANG LASALLE,BA0000280395,"3,000.00",245894718
BIS,The Insolvency Service,10/10/2014,Accommodation,FINANCE AND COMMERCIAL                                                                              ,JONES LANG LASALLE,BA0000280397,"1,740.00",245894718
BIS,The Insolvency Service,22/10/2014,Insolvency Case Related Costs,OFFICIAL RECEIVER SERVICES                                                                          ,K INTERNATIONAL PLC,BA0000280702,470.80,600413800
BIS,The Insolvency Service,03/10/2014,Accounting and Banking,FINANCE AND COMMERCIAL,KDS UK LTD,BA0000280159,"2,786.40",776463881
BIS,The Insolvency Service,22/10/2014,Accommodation,ESTATES,KINGSTON (SENATE) LTD,BA0000280698,"41,625.60",140357635
BIS,The Insolvency Service,22/10/2014,Accommodation,ESTATES,KINGSTON (SENATE) LTD,BA0000280731,"1,687.78",140357635
BIS,The Insolvency Service,01/10/2014,Telecoms,INFORMATION TECHNOLOGY                                                                              ,KINGSTON COMMUNICATIONS,BA0000280574,154.28,647235137
BIS,The Insolvency Service,31/10/2014,Computer and IT Systems,INFORMATION TECHNOLOGY                                                                              ,KOFAX NORTHERN IRELAND LIMITED,BA0000281016,"90,000.00",681590219
BIS,The Insolvency Service,17/10/2014,Accounting and Banking,FINANCE AND COMMERCIAL,KYPERA LTD,BA0000280583,61.80,813905437
BIS,The Insolvency Service,17/10/2014,Accounting and Banking,FINANCE AND COMMERCIAL,KYPERA LTD,BA0000280583,"5,280.00",813905437
BIS,The Insolvency Service,06/10/2014,Agency Workers,INFORMATION TECHNOLOGY                                                                              ,LA INTERNATIONAL COMPUTER CONSULTANTS LTD,BA0000280158,"12,643.49",
BIS,The Insolvency Service,06/10/2014,Accommodation,ESTATES,LAMBERT SMITH HAMPTON,BA0000280208,"41,632.80",
BIS,The Insolvency Service,06/10/2014,Accommodation,ESTATES,LAMBERT SMITH HAMPTON,BA0000280208,"9,000.93",
BIS,The Insolvency Service,09/10/2014,Office Supplies and Services,BUSINESS SERVICES DIRECTORATE                                                                       ,LEXISNEXIS UK (LEXISNEXIS BUTTERWORTHS),BA0000280323,285.00,730859520
BIS,The Insolvency Service,01/10/2014,Travel and Subsistence,INVESTIGATIONS & ENFORCEMENT                                                                        ,LONDON MIDLAND SEL,BA0000280574,7.20,
BIS,The Insolvency Service,01/10/2014,Travel and Subsistence,ESTATES,LONDON MIDLAND SEL,BA0000280574,5.00,
BIS,The Insolvency Service,01/10/2014,Travel and Subsistence,BUSINESS SERVICES DIRECTORATE                                                                       ,LUL TICKET MACHINE,BA0000280574,20.00,
BIS,The Insolvency Service,01/10/2014,Travel and Subsistence,INVESTIGATIONS & ENFORCEMENT                                                                        ,LUL TICKET MACHINE,BA0000280574,20.00,
BIS,The Insolvency Service,01/10/2014,Travel and Subsistence,OFFICIAL RECEIVER SERVICES                                                                          ,LUL TICKET MACHINE,BA0000280574,11.40,
BIS,The Insolvency Service,01/10/2014,Travel and Subsistence,INVESTIGATIONS & ENFORCEMENT                                                                        ,LUL TICKET MACHINE,BA0000280574,8.90,
BIS,The Insolvency Service,01/10/2014,Travel and Subsistence,INVESTIGATIONS & ENFORCEMENT                                                                        ,LUL TICKET MACHINE,BA0000280574,20.00,
BIS,The Insolvency Service,01/10/2014,Travel and Subsistence,OFFICIAL RECEIVER SERVICES                                                                          ,LUL TICKET MACHINE,BA0000280574,8.90,
BIS,The Insolvency Service,01/10/2014,Travel and Subsistence,OFFICIAL RECEIVER SERVICES                                                                          ,LUL TICKET MACHINE,BA0000280574,20.00,
BIS,The Insolvency Service,01/10/2014,Travel and Subsistence,INVESTIGATIONS & ENFORCEMENT                                                                        ,LUL TICKET MACHINE,BA0000280574,30.00,
BIS,The Insolvency Service,01/10/2014,Travel and Subsistence,INVESTIGATIONS & ENFORCEMENT                                                                        ,LUL TICKET MACHINE,BA0000280574,20.00,
BIS,The Insolvency Service,01/10/2014,Travel and Subsistence,BUSINESS SERVICES DIRECTORATE                                                                       ,LUL TICKET OFFICE,BA0000280574,20.00,
BIS,The Insolvency Service,01/10/2014,Travel and Subsistence,BUSINESS SERVICES DIRECTORATE                                                                       ,M6 TOLL,BA0000280574,4.00,
BIS,The Insolvency Service,01/10/2014,Travel and Subsistence,BUSINESS SERVICES DIRECTORATE                                                                       ,M6 TOLL,BA0000280574,4.00,
BIS,The Insolvency Service,01/10/2014,Travel and Subsistence,BUSINESS SERVICES DIRECTORATE                                                                       ,M6 TOLL,BA0000280574,4.00,
BIS,The Insolvency Service,27/10/2014,Accommodation,FINANCE AND COMMERCIAL                                                                              ,MARK SCOBLE                                                 ,BA0000280848,40.00,
BIS,The Insolvency Service,10/10/2014,Agency Workers,FINANCE AND COMMERCIAL                                                                              ,MAXINE CHAPMAN                                              ,BA0000280402,40.00,
BIS,The Insolvency Service,01/10/2014,Computer and IT Systems,FINANCE AND COMMERCIAL,MCAFEE                                                      ,BA0000280574,-74.99,
BIS,The Insolvency Service,06/10/2014,Agency Workers,CUSTOMER AND COMMUNICATIONS                                                                         ,MICHAEL PAGE INTERNATIONAL RECRUITMENT LTD,BA0000280214,643.94,354259936
BIS,The Insolvency Service,07/10/2014,Agency Workers,CUSTOMER AND COMMUNICATIONS                                                                         ,MICHAEL PAGE INTERNATIONAL RECRUITMENT LTD,BA0000280238,528.00,354259936
BIS,The Insolvency Service,13/10/2014,Agency Workers,CUSTOMER AND COMMUNICATIONS                                                                         ,MICHAEL PAGE INTERNATIONAL RECRUITMENT LTD,BA0000280445,643.94,354259936
BIS,The Insolvency Service,20/10/2014,Agency Workers,CUSTOMER AND COMMUNICATIONS                                                                         ,MICHAEL PAGE INTERNATIONAL RECRUITMENT LTD,BA0000280656,563.45,354259936
BIS,The Insolvency Service,22/10/2014,Agency Workers,CUSTOMER AND COMMUNICATIONS                                                                         ,MICHAEL PAGE INTERNATIONAL RECRUITMENT LTD,BA0000280704,321.97,354259936
BIS,The Insolvency Service,03/10/2014,Agency Workers,FINANCE AND COMMERCIAL                                                                              ,MICHAEL SMALE                                               ,BA0000280150,40.00,
BIS,The Insolvency Service,08/10/2014,Accommodation,ESTATES,MIDDLESBROUGH COUNCIL                                       ,BA0000280303,264.62,734213854
BIS,The Insolvency Service,03/10/2014,Telecoms,INFORMATION TECHNOLOGY                                                                              ,MIT DYNAMIC TECHNOLOGIES LTD                                ,BA0000280147,449.40,802709154
BIS,The Insolvency Service,01/10/2014,Travel and Subsistence,OFFICIAL RECEIVER SERVICES                                                                          ,MKC PAYBEPHONES                                             ,BA0000280574,11.38,
BIS,The Insolvency Service,16/10/2014,Insolvency Case Related Costs,BUSINESS SERVICES DIRECTORATE                                                                       ,MONEY ADVICE TRUST,BA0000280569,"6,400.00",
BIS,The Insolvency Service,31/10/2014,Conferences,CUSTOMER AND COMMUNICATIONS                                                                         ,MU ENTERPRISES LTD                                          ,BA0000280970,388.00,
BIS,The Insolvency Service,17/10/2014,Department for Business Innovation and Skills,FINANCE AND COMMERCIAL                                                                              ,MYCSP LTD,BA0000280580,"3,281.64",
BIS,The Insolvency Service,16/10/2014,Insolvency Case Related Costs,BUSINESS SERVICES DIRECTORATE                                                                       ,NATIONAL ASSOCIATION OF CITIZENS ADVICE BUREAU,BA0000280567,"86,020.00",726020276
BIS,The Insolvency Service,01/10/2014,Travel and Subsistence,OFFICIAL RECEIVER SERVICES                                                                          ,NCP PARKING,BA0000280574,6.00,
BIS,The Insolvency Service,01/10/2014,Travel and Subsistence,OFFICIAL RECEIVER SERVICES                                                                          ,NCP PARKING,BA0000280574,6.00,
BIS,The Insolvency Service,10/10/2014,Office Machinery,BUSINESS SERVICES DIRECTORATE                                                                       ,NEOPOST  LIMITED (LEASING),BA0000280381,"13,189.28",805644140
BIS,The Insolvency Service,10/10/2014,Office Machinery,INFORMATION TECHNOLOGY                                                                              ,NEOPOST  LIMITED (LEASING),BA0000280381,"16,942.14",805644140
BIS,The Insolvency Service,10/10/2014,Office Machinery,OFFICIAL RECEIVER SERVICES                                                                          ,NEOPOST  LIMITED (LEASING),BA0000280381,"4,463.48",805644140
BIS,The Insolvency Service,10/10/2014,Office Machinery,OFFICIAL RECEIVER SERVICES                                                                          ,NEOPOST  LIMITED (LEASING),BA0000280381,"4,463.48",805644140
BIS,The Insolvency Service,10/10/2014,Office Machinery,OFFICIAL RECEIVER SERVICES                                                                          ,NEOPOST  LIMITED (LEASING),BA0000280381,"4,463.48",805644140
BIS,The Insolvency Service,10/10/2014,Office Machinery,OFFICIAL RECEIVER SERVICES                                                                          ,NEOPOST  LIMITED (LEASING),BA0000280381,"4,463.48",805644140
BIS,The Insolvency Service,10/10/2014,Office Machinery,OFFICIAL RECEIVER SERVICES                                                                          ,NEOPOST  LIMITED (LEASING),BA0000280381,"6,310.58",805644140
BIS,The Insolvency Service,10/10/2014,Office Machinery,OFFICIAL RECEIVER SERVICES                                                                          ,NEOPOST  LIMITED (LEASING),BA0000280381,"6,846.88",805644140
BIS,The Insolvency Service,10/10/2014,Office Machinery,OFFICIAL RECEIVER SERVICES                                                                          ,NEOPOST  LIMITED (LEASING),BA0000280381,"6,846.88",805644140
BIS,The Insolvency Service,10/10/2014,Office Machinery,OFFICIAL RECEIVER SERVICES                                                                          ,NEOPOST  LIMITED (LEASING),BA0000280381,"6,846.88",805644140
BIS,The Insolvency Service,10/10/2014,Office Machinery,OFFICIAL RECEIVER SERVICES                                                                          ,NEOPOST  LIMITED (LEASING),BA0000280381,"6,846.88",805644140
BIS,The Insolvency Service,10/10/2014,Office Machinery,OFFICIAL RECEIVER SERVICES                                                                          ,NEOPOST  LIMITED (LEASING),BA0000280381,"6,846.88",805644140
BIS,The Insolvency Service,10/10/2014,Office Machinery,OFFICIAL RECEIVER SERVICES                                                                          ,NEOPOST  LIMITED (LEASING),BA0000280381,"8,693.95",805644140
BIS,The Insolvency Service,10/10/2014,Office Machinery,OFFICIAL RECEIVER SERVICES                                                                          ,NEOPOST  LIMITED (LEASING),BA0000280381,"8,693.95",805644140
BIS,The Insolvency Service,10/10/2014,Office Machinery,OFFICIAL RECEIVER SERVICES                                                                          ,NEOPOST  LIMITED (LEASING),BA0000280381,"8,693.95",805644140
BIS,The Insolvency Service,10/10/2014,Office Machinery,OFFICIAL RECEIVER SERVICES                                                                          ,NEOPOST  LIMITED (LEASING),BA0000280381,"8,693.95",805644140
BIS,The Insolvency Service,10/10/2014,Office Machinery,OFFICIAL RECEIVER SERVICES                                                                          ,NEOPOST  LIMITED (LEASING),BA0000280381,"8,693.95",805644140
BIS,The Insolvency Service,10/10/2014,Office Machinery,OFFICIAL RECEIVER SERVICES                                                                          ,NEOPOST  LIMITED (LEASING),BA0000280381,"8,693.95",805644140
BIS,The Insolvency Service,10/10/2014,Office Machinery,OFFICIAL RECEIVER SERVICES                                                                          ,NEOPOST  LIMITED (LEASING),BA0000280381,"8,693.95",805644140
BIS,The Insolvency Service,10/10/2014,Office Machinery,OFFICIAL RECEIVER SERVICES                                                                          ,NEOPOST  LIMITED (LEASING),BA0000280381,"9,044.25",805644140
BIS,The Insolvency Service,10/10/2014,Office Machinery,OFFICIAL RECEIVER SERVICES                                                                          ,NEOPOST  LIMITED (LEASING),BA0000280381,"12,069.62",805644140
BIS,The Insolvency Service,10/10/2014,Office Machinery,OFFICIAL RECEIVER SERVICES                                                                          ,NEOPOST  LIMITED (LEASING),BA0000280381,"20,763.57",805644140
BIS,The Insolvency Service,22/10/2014,Office Machinery,OFFICIAL RECEIVER SERVICES                                                                          ,NEOPOST LIMITED (CONSUMABLES),BA0000280725,391.18,597265489
BIS,The Insolvency Service,22/10/2014,Office Supplies and Services,OFFICIAL RECEIVER SERVICES                                                                          ,NEOPOST LIMITED (CONSUMABLES),BA0000280722,216.00,597265489
BIS,The Insolvency Service,02/10/2014,Postage,BUSINESS SERVICES DIRECTORATE                                                                       ,NEOPOST LTD - FRANKING TOP UPS,BA0000280087,100.00,
BIS,The Insolvency Service,02/10/2014,Postage,BUSINESS SERVICES DIRECTORATE                                                                       ,NEOPOST LTD - FRANKING TOP UPS,BA0000280087,300.00,
BIS,The Insolvency Service,02/10/2014,Postage,BUSINESS SERVICES DIRECTORATE                                                                       ,NEOPOST LTD - FRANKING TOP UPS,BA0000280087,330.00,
BIS,The Insolvency Service,02/10/2014,Postage,BUSINESS SERVICES DIRECTORATE                                                                       ,NEOPOST LTD - FRANKING TOP UPS,BA0000280087,800.00,
BIS,The Insolvency Service,02/10/2014,Postage,INFORMATION TECHNOLOGY                                                                              ,NEOPOST LTD - FRANKING TOP UPS,BA0000280087,"5,000.00",
BIS,The Insolvency Service,02/10/2014,Postage,OFFICIAL RECEIVER SERVICES                                                                          ,NEOPOST LTD - FRANKING TOP UPS,BA0000280087,50.00,
BIS,The Insolvency Service,02/10/2014,Postage,OFFICIAL RECEIVER SERVICES                                                                          ,NEOPOST LTD - FRANKING TOP UPS,BA0000280087,200.00,
BIS,The Insolvency Service,02/10/2014,Postage,OFFICIAL RECEIVER SERVICES                                                                          ,NEOPOST LTD - FRANKING TOP UPS,BA0000280087,200.00,
BIS,The Insolvency Service,02/10/2014,Postage,OFFICIAL RECEIVER SERVICES                                                                          ,NEOPOST LTD - FRANKING TOP UPS,BA0000280087,400.00,
BIS,The Insolvency Service,02/10/2014,Postage,OFFICIAL RECEIVER SERVICES                                                                          ,NEOPOST LTD - FRANKING TOP UPS,BA0000280087,600.00,
BIS,The Insolvency Service,02/10/2014,Postage,OFFICIAL RECEIVER SERVICES                                                                          ,NEOPOST LTD - FRANKING TOP UPS,BA0000280087,670.00,
BIS,The Insolvency Service,02/10/2014,Postage,OFFICIAL RECEIVER SERVICES                                                                          ,NEOPOST LTD - FRANKING TOP UPS,BA0000280087,700.00,
BIS,The Insolvency Service,02/10/2014,Postage,OFFICIAL RECEIVER SERVICES                                                                          ,NEOPOST LTD - FRANKING TOP UPS,BA0000280087,"1,000.00",
BIS,The Insolvency Service,02/10/2014,Postage,OFFICIAL RECEIVER SERVICES                                                                          ,NEOPOST LTD - FRANKING TOP UPS,BA0000280087,"1,000.00",
BIS,The Insolvency Service,10/10/2014,Postage,BUSINESS SERVICES DIRECTORATE                                                                       ,NEOPOST LTD - FRANKING TOP UPS,BA0000280398,100.00,
BIS,The Insolvency Service,10/10/2014,Postage,BUSINESS SERVICES DIRECTORATE                                                                       ,NEOPOST LTD - FRANKING TOP UPS,BA0000280398,300.00,
BIS,The Insolvency Service,10/10/2014,Postage,BUSINESS SERVICES DIRECTORATE                                                                       ,NEOPOST LTD - FRANKING TOP UPS,BA0000280398,330.00,
BIS,The Insolvency Service,10/10/2014,Postage,BUSINESS SERVICES DIRECTORATE                                                                       ,NEOPOST LTD - FRANKING TOP UPS,BA0000280398,333.00,
BIS,The Insolvency Service,10/10/2014,Postage,BUSINESS SERVICES DIRECTORATE                                                                       ,NEOPOST LTD - FRANKING TOP UPS,BA0000280398,410.00,
BIS,The Insolvency Service,10/10/2014,Postage,BUSINESS SERVICES DIRECTORATE                                                                       ,NEOPOST LTD - FRANKING TOP UPS,BA0000280398,800.00,
BIS,The Insolvency Service,10/10/2014,Postage,INFORMATION TECHNOLOGY                                                                              ,NEOPOST LTD - FRANKING TOP UPS,BA0000280398,"5,000.00",
BIS,The Insolvency Service,10/10/2014,Postage,OFFICIAL RECEIVER SERVICES                                                                          ,NEOPOST LTD - FRANKING TOP UPS,BA0000280398,50.00,
BIS,The Insolvency Service,10/10/2014,Postage,OFFICIAL RECEIVER SERVICES                                                                          ,NEOPOST LTD - FRANKING TOP UPS,BA0000280398,50.00,
BIS,The Insolvency Service,10/10/2014,Postage,OFFICIAL RECEIVER SERVICES                                                                          ,NEOPOST LTD - FRANKING TOP UPS,BA0000280398,100.00,
BIS,The Insolvency Service,10/10/2014,Postage,OFFICIAL RECEIVER SERVICES                                                                          ,NEOPOST LTD - FRANKING TOP UPS,BA0000280398,200.00,
BIS,The Insolvency Service,10/10/2014,Postage,OFFICIAL RECEIVER SERVICES                                                                          ,NEOPOST LTD - FRANKING TOP UPS,BA0000280398,200.00,
BIS,The Insolvency Service,10/10/2014,Postage,OFFICIAL RECEIVER SERVICES                                                                          ,NEOPOST LTD - FRANKING TOP UPS,BA0000280398,400.00,
BIS,The Insolvency Service,10/10/2014,Postage,OFFICIAL RECEIVER SERVICES                                                                          ,NEOPOST LTD - FRANKING TOP UPS,BA0000280398,567.00,
BIS,The Insolvency Service,10/10/2014,Postage,OFFICIAL RECEIVER SERVICES                                                                          ,NEOPOST LTD - FRANKING TOP UPS,BA0000280398,590.00,
BIS,The Insolvency Service,10/10/2014,Postage,OFFICIAL RECEIVER SERVICES                                                                          ,NEOPOST LTD - FRANKING TOP UPS,BA0000280398,670.00,
BIS,The Insolvency Service,17/10/2014,Postage,BUSINESS SERVICES DIRECTORATE                                                                       ,NEOPOST LTD - FRANKING TOP UPS,BA0000280593,100.00,
BIS,The Insolvency Service,17/10/2014,Postage,BUSINESS SERVICES DIRECTORATE                                                                       ,NEOPOST LTD - FRANKING TOP UPS,BA0000280593,330.00,
BIS,The Insolvency Service,17/10/2014,Postage,BUSINESS SERVICES DIRECTORATE                                                                       ,NEOPOST LTD - FRANKING TOP UPS,BA0000280593,800.00,
BIS,The Insolvency Service,17/10/2014,Postage,INFORMATION TECHNOLOGY                                                                              ,NEOPOST LTD - FRANKING TOP UPS,BA0000280593,"5,000.00",
BIS,The Insolvency Service,17/10/2014,Postage,OFFICIAL RECEIVER SERVICES                                                                          ,NEOPOST LTD - FRANKING TOP UPS,BA0000280593,50.00,
BIS,The Insolvency Service,17/10/2014,Postage,OFFICIAL RECEIVER SERVICES                                                                          ,NEOPOST LTD - FRANKING TOP UPS,BA0000280593,200.00,
BIS,The Insolvency Service,17/10/2014,Postage,OFFICIAL RECEIVER SERVICES                                                                          ,NEOPOST LTD - FRANKING TOP UPS,BA0000280593,400.00,
BIS,The Insolvency Service,17/10/2014,Postage,OFFICIAL RECEIVER SERVICES                                                                          ,NEOPOST LTD - FRANKING TOP UPS,BA0000280593,670.00,
BIS,The Insolvency Service,17/10/2014,Postage,OFFICIAL RECEIVER SERVICES                                                                          ,NEOPOST LTD - FRANKING TOP UPS,BA0000280593,700.00,
BIS,The Insolvency Service,17/10/2014,Postage,OFFICIAL RECEIVER SERVICES                                                                          ,NEOPOST LTD - FRANKING TOP UPS,BA0000280593,"1,000.00",
BIS,The Insolvency Service,17/10/2014,Postage,OFFICIAL RECEIVER SERVICES                                                                          ,NEOPOST LTD - FRANKING TOP UPS,BA0000280593,"1,000.00",
BIS,The Insolvency Service,17/10/2014,Postage,OFFICIAL RECEIVER SERVICES                                                                          ,NEOPOST LTD - FRANKING TOP UPS,BA0000280593,"1,000.00",
BIS,The Insolvency Service,17/10/2014,Postage,OFFICIAL RECEIVER SERVICES                                                                          ,NEOPOST LTD - FRANKING TOP UPS,BA0000280593,"1,000.00",
BIS,The Insolvency Service,23/10/2014,Postage,BUSINESS SERVICES DIRECTORATE                                                                       ,NEOPOST LTD - FRANKING TOP UPS,BA0000280751,100.00,
BIS,The Insolvency Service,23/10/2014,Postage,BUSINESS SERVICES DIRECTORATE                                                                       ,NEOPOST LTD - FRANKING TOP UPS,BA0000280751,300.00,
BIS,The Insolvency Service,23/10/2014,Postage,BUSINESS SERVICES DIRECTORATE                                                                       ,NEOPOST LTD - FRANKING TOP UPS,BA0000280751,330.00,
BIS,The Insolvency Service,23/10/2014,Postage,BUSINESS SERVICES DIRECTORATE                                                                       ,NEOPOST LTD - FRANKING TOP UPS,BA0000280751,333.00,
BIS,The Insolvency Service,23/10/2014,Postage,BUSINESS SERVICES DIRECTORATE                                                                       ,NEOPOST LTD - FRANKING TOP UPS,BA0000280751,410.00,
BIS,The Insolvency Service,23/10/2014,Postage,BUSINESS SERVICES DIRECTORATE                                                                       ,NEOPOST LTD - FRANKING TOP UPS,BA0000280751,800.00,
BIS,The Insolvency Service,23/10/2014,Postage,INFORMATION TECHNOLOGY                                                                              ,NEOPOST LTD - FRANKING TOP UPS,BA0000280751,"5,000.00",
BIS,The Insolvency Service,23/10/2014,Postage,OFFICIAL RECEIVER SERVICES                                                                          ,NEOPOST LTD - FRANKING TOP UPS,BA0000280751,50.00,
BIS,The Insolvency Service,23/10/2014,Postage,OFFICIAL RECEIVER SERVICES                                                                          ,NEOPOST LTD - FRANKING TOP UPS,BA0000280751,100.00,
BIS,The Insolvency Service,23/10/2014,Postage,OFFICIAL RECEIVER SERVICES                                                                          ,NEOPOST LTD - FRANKING TOP UPS,BA0000280751,200.00,
BIS,The Insolvency Service,23/10/2014,Postage,OFFICIAL RECEIVER SERVICES                                                                          ,NEOPOST LTD - FRANKING TOP UPS,BA0000280751,200.00,
BIS,The Insolvency Service,23/10/2014,Postage,OFFICIAL RECEIVER SERVICES                                                                          ,NEOPOST LTD - FRANKING TOP UPS,BA0000280751,400.00,
BIS,The Insolvency Service,23/10/2014,Postage,OFFICIAL RECEIVER SERVICES                                                                          ,NEOPOST LTD - FRANKING TOP UPS,BA0000280751,567.00,
BIS,The Insolvency Service,23/10/2014,Postage,OFFICIAL RECEIVER SERVICES                                                                          ,NEOPOST LTD - FRANKING TOP UPS,BA0000280751,590.00,
BIS,The Insolvency Service,23/10/2014,Postage,OFFICIAL RECEIVER SERVICES                                                                          ,NEOPOST LTD - FRANKING TOP UPS,BA0000280751,600.00,
BIS,The Insolvency Service,23/10/2014,Postage,OFFICIAL RECEIVER SERVICES                                                                          ,NEOPOST LTD - FRANKING TOP UPS,BA0000280751,670.00,
BIS,The Insolvency Service,31/10/2014,Postage,BUSINESS SERVICES DIRECTORATE                                                                       ,NEOPOST LTD - FRANKING TOP UPS,BA0000281012,100.00,
BIS,The Insolvency Service,31/10/2014,Postage,BUSINESS SERVICES DIRECTORATE                                                                       ,NEOPOST LTD - FRANKING TOP UPS,BA0000281012,300.00,
BIS,The Insolvency Service,31/10/2014,Postage,BUSINESS SERVICES DIRECTORATE                                                                       ,NEOPOST LTD - FRANKING TOP UPS,BA0000281012,330.00,
BIS,The Insolvency Service,31/10/2014,Postage,BUSINESS SERVICES DIRECTORATE                                                                       ,NEOPOST LTD - FRANKING TOP UPS,BA0000281012,410.00,
BIS,The Insolvency Service,31/10/2014,Postage,BUSINESS SERVICES DIRECTORATE                                                                       ,NEOPOST LTD - FRANKING TOP UPS,BA0000281012,800.00,
BIS,The Insolvency Service,31/10/2014,Postage,OFFICIAL RECEIVER SERVICES                                                                          ,NEOPOST LTD - FRANKING TOP UPS,BA0000281012,200.00,
BIS,The Insolvency Service,31/10/2014,Postage,OFFICIAL RECEIVER SERVICES                                                                          ,NEOPOST LTD - FRANKING TOP UPS,BA0000281012,200.00,
BIS,The Insolvency Service,31/10/2014,Postage,OFFICIAL RECEIVER SERVICES                                                                          ,NEOPOST LTD - FRANKING TOP UPS,BA0000281012,400.00,
BIS,The Insolvency Service,31/10/2014,Postage,OFFICIAL RECEIVER SERVICES                                                                          ,NEOPOST LTD - FRANKING TOP UPS,BA0000281012,590.00,
BIS,The Insolvency Service,31/10/2014,Postage,OFFICIAL RECEIVER SERVICES                                                                          ,NEOPOST LTD - FRANKING TOP UPS,BA0000281012,670.00,
BIS,The Insolvency Service,31/10/2014,Postage,OFFICIAL RECEIVER SERVICES                                                                          ,NEOPOST LTD - FRANKING TOP UPS,BA0000281012,700.00,
BIS,The Insolvency Service,31/10/2014,Postage,OFFICIAL RECEIVER SERVICES                                                                          ,NEOPOST LTD - FRANKING TOP UPS,BA0000281012,"1,000.00",
BIS,The Insolvency Service,31/10/2014,Postage,OFFICIAL RECEIVER SERVICES                                                                          ,NEOPOST LTD - FRANKING TOP UPS,BA0000281012,"1,000.00",
BIS,The Insolvency Service,31/10/2014,Postage,OFFICIAL RECEIVER SERVICES                                                                          ,NEOPOST LTD - FRANKING TOP UPS,BA0000281012,"1,000.00",
BIS,The Insolvency Service,10/10/2014,Agency Workers,FINANCE AND COMMERCIAL                                                                              ,NICHOLAS WILLIAMS                                           ,BA0000280400,40.00,
BIS,The Insolvency Service,03/10/2014,Telecoms,INVESTIGATIONS & ENFORCEMENT                                                                        ,NINE TELECOM,BA0000280139,390.00,886132113
BIS,The Insolvency Service,03/10/2014,Telecoms,OFFICIAL RECEIVER SERVICES                                                                          ,NINE TELECOM,BA0000280136,540.00,886132113
BIS,The Insolvency Service,03/10/2014,Telecoms,OFFICIAL RECEIVER SERVICES                                                                          ,NINE TELECOM,BA0000280137,180.00,886132113
BIS,The Insolvency Service,03/10/2014,Telecoms,OFFICIAL RECEIVER SERVICES                                                                          ,NINE TELECOM,BA0000280138,390.00,886132113
BIS,The Insolvency Service,03/10/2014,Telecoms,OFFICIAL RECEIVER SERVICES                                                                          ,NINE TELECOM,BA0000280140,300.00,886132113
BIS,The Insolvency Service,03/10/2014,Telecoms,OFFICIAL RECEIVER SERVICES                                                                          ,NINE TELECOM,BA0000280154,"1,080.00",886132113
BIS,The Insolvency Service,03/10/2014,Telecoms,OFFICIAL RECEIVER SERVICES                                                                          ,NINE TELECOM,BA0000280141,240.00,886132113
BIS,The Insolvency Service,03/10/2014,Telecoms,OFFICIAL RECEIVER SERVICES                                                                          ,NINE TELECOM,BA0000280142,540.00,886132113
BIS,The Insolvency Service,03/10/2014,Telecoms,OFFICIAL RECEIVER SERVICES                                                                          ,NINE TELECOM,BA0000280143,90.00,886132113
BIS,The Insolvency Service,03/10/2014,Telecoms,OFFICIAL RECEIVER SERVICES                                                                          ,NINE TELECOM,BA0000280155,"3,900.00",886132113
BIS,The Insolvency Service,10/10/2014,Computer and IT Systems,INFORMATION TECHNOLOGY                                                                              ,NINE TELECOM,BA0000280410,156.85,886132113
BIS,The Insolvency Service,08/10/2014,Training Costs,PEOPLE & CAPABILITY                                                                                 ,NORTH GROVE CONSULTANCY LTD,BA0000280274,"3,992.32",825581516
BIS,The Insolvency Service,28/10/2014,Training Costs,PEOPLE & CAPABILITY                                                                                 ,NORTH GROVE CONSULTANCY LTD,BA0000280902,"4,068.53",825581516
BIS,The Insolvency Service,28/10/2014,Accommodation,ESTATES,NORTHAMPTON BOROUGH COUNCIL,BA0000280899,301.00,121492986
BIS,The Insolvency Service,06/10/2014,Computer and IT Systems,INFORMATION TECHNOLOGY                                                                              ,NORTHGATE INFORMATION SOLUTIONS UK LTD.,BA0000280162,"2,538.00",207588545
BIS,The Insolvency Service,23/10/2014,Computer and IT Systems,BUSINESS SERVICES DIRECTORATE                                                                       ,NORTHGATE INFORMATION SOLUTIONS UK LTD.,BA0000280749,"4,004.95",207588545
BIS,The Insolvency Service,28/10/2014,Computer and IT Systems,INFORMATION TECHNOLOGY                                                                              ,NORTHGATE INFORMATION SOLUTIONS UK LTD.,BA0000280901,"6,874.00",207588545
BIS,The Insolvency Service,29/10/2014,Computer and IT Systems,INFORMATION TECHNOLOGY                                                                              ,NORTHGATE INFORMATION SOLUTIONS UK LTD.,BA0000280944,"30,156.00",207588545
BIS,The Insolvency Service,29/10/2014,Computer and IT Systems,INFORMATION TECHNOLOGY                                                                              ,NORTHGATE INFORMATION SOLUTIONS UK LTD.,BA0000280945,"-30,156.00",207588545
BIS,The Insolvency Service,29/10/2014,Accommodation,ESTATES,NPOWER           ,BA0000280943,212.97,
BIS,The Insolvency Service,22/10/2014,Agency Workers,FINANCE AND COMMERCIAL                                                                              ,NTT DATA UK                                                 ,BA0000280734,"8,170.80",413575167
BIS,The Insolvency Service,22/10/2014,Agency Workers,FINANCE AND COMMERCIAL                                                                              ,NTT DATA UK                                                 ,BA0000280735,"14,113.20",413575167
BIS,The Insolvency Service,22/10/2014,Agency Workers,FINANCE AND COMMERCIAL                                                                              ,NTT DATA UK                                                 ,BA0000280736,"15,598.80",413575167
BIS,The Insolvency Service,01/10/2014,Travel and Subsistence,OFFICIAL RECEIVER SERVICES                                                                          ,OYSTER AUTO TOP UP,BA0000280574,20.00,
BIS,The Insolvency Service,01/10/2014,Travel and Subsistence,INVESTIGATIONS & ENFORCEMENT                                                                        ,OYSTER AUTO TOP UP,BA0000280574,25.00,
BIS,The Insolvency Service,01/10/2014,Travel and Subsistence,OFFICIAL RECEIVER SERVICES                                                                          ,OYSTER AUTO TOP UP,BA0000280574,20.00,
BIS,The Insolvency Service,01/10/2014,Travel and Subsistence,INVESTIGATIONS & ENFORCEMENT                                                                        ,OYSTER AUTO TOP UP,BA0000280574,25.00,
BIS,The Insolvency Service,01/10/2014,Travel and Subsistence,OFFICIAL RECEIVER SERVICES                                                                          ,OYSTER AUTO TOP UP,BA0000280574,20.00,
BIS,The Insolvency Service,01/10/2014,Travel and Subsistence,OFFICIAL RECEIVER SERVICES                                                                          ,OYSTER AUTO TOP UP,BA0000280574,20.00,
BIS,The Insolvency Service,01/10/2014,Travel and Subsistence,OFFICIAL RECEIVER SERVICES                                                                          ,OYSTER AUTO TOP UP,BA0000280574,20.00,
BIS,The Insolvency Service,01/10/2014,Travel and Subsistence,FINANCE AND COMMERCIAL                                                                              ,OYSTER AUTO TOP UP,BA0000280574,15.00,
BIS,The Insolvency Service,01/10/2014,Travel and Subsistence,EXTERNAL AFFAIRS                                                                                    ,OYSTER AUTO TOP UP,BA0000280574,20.00,
BIS,The Insolvency Service,01/10/2014,Travel and Subsistence,INVESTIGATIONS & ENFORCEMENT                                                                        ,OYSTER AUTO TOP UP,BA0000280574,-25.00,
BIS,The Insolvency Service,01/10/2014,Travel and Subsistence,OFFICIAL RECEIVER SERVICES                                                                          ,OYSTER AUTO TOP UP,BA0000280574,20.00,
BIS,The Insolvency Service,10/10/2014,Postage,FINANCE AND COMMERCIAL                                                                              ,PARCELFORCE WORLDWIDE,BA0000280383,5.99,243170002
BIS,The Insolvency Service,10/10/2014,Postage,FINANCE AND COMMERCIAL                                                                              ,PARCELFORCE WORLDWIDE,BA0000280383,12.83,243170002
BIS,The Insolvency Service,10/10/2014,Postage,FINANCE AND COMMERCIAL                                                                              ,PARCELFORCE WORLDWIDE,BA0000280383,12.87,243170002
BIS,The Insolvency Service,10/10/2014,Postage,FINANCE AND COMMERCIAL                                                                              ,PARCELFORCE WORLDWIDE,BA0000280383,16.69,243170002
BIS,The Insolvency Service,10/10/2014,Postage,FINANCE AND COMMERCIAL                                                                              ,PARCELFORCE WORLDWIDE,BA0000280383,18.02,243170002
BIS,The Insolvency Service,10/10/2014,Postage,FINANCE AND COMMERCIAL                                                                              ,PARCELFORCE WORLDWIDE,BA0000280383,68.18,243170002
BIS,The Insolvency Service,10/10/2014,Postage,OFFICIAL RECEIVER SERVICES                                                                          ,PARCELFORCE WORLDWIDE,BA0000280383,10.10,243170002
BIS,The Insolvency Service,10/10/2014,Postage,OFFICIAL RECEIVER SERVICES                                                                          ,PARCELFORCE WORLDWIDE,BA0000280383,12.83,243170002
BIS,The Insolvency Service,10/10/2014,Postage,OFFICIAL RECEIVER SERVICES                                                                          ,PARCELFORCE WORLDWIDE,BA0000280383,15.01,243170002
BIS,The Insolvency Service,10/10/2014,Postage,OFFICIAL RECEIVER SERVICES                                                                          ,PARCELFORCE WORLDWIDE,BA0000280383,15.01,243170002
BIS,The Insolvency Service,10/10/2014,Postage,OFFICIAL RECEIVER SERVICES                                                                          ,PARCELFORCE WORLDWIDE,BA0000280383,16.28,243170002
BIS,The Insolvency Service,10/10/2014,Postage,OFFICIAL RECEIVER SERVICES                                                                          ,PARCELFORCE WORLDWIDE,BA0000280383,16.69,243170002
BIS,The Insolvency Service,10/10/2014,Postage,OFFICIAL RECEIVER SERVICES                                                                          ,PARCELFORCE WORLDWIDE,BA0000280383,20.10,243170002
BIS,The Insolvency Service,10/10/2014,Postage,OFFICIAL RECEIVER SERVICES                                                                          ,PARCELFORCE WORLDWIDE,BA0000280383,29.56,243170002
BIS,The Insolvency Service,10/10/2014,Postage,OFFICIAL RECEIVER SERVICES                                                                          ,PARCELFORCE WORLDWIDE,BA0000280383,29.56,243170002
BIS,The Insolvency Service,10/10/2014,Postage,OFFICIAL RECEIVER SERVICES                                                                          ,PARCELFORCE WORLDWIDE,BA0000280383,67.18,243170002
BIS,The Insolvency Service,02/10/2014,Computer and IT Systems,INFORMATION TECHNOLOGY                                                                              ,PARITY RESOURCES LTD,BA0000280089,"19,270.80",649913985
BIS,The Insolvency Service,15/10/2014,Computer and IT Systems,INFORMATION TECHNOLOGY                                                                              ,PARITY RESOURCES LTD,BA0000280508,"8,687.26",649913985
BIS,The Insolvency Service,01/10/2014,Travel and Subsistence,OFFICIAL RECEIVER SERVICES                                                                          ,PAYBYPHONE PARKING,BA0000280574,12.20,
BIS,The Insolvency Service,27/10/2014,Accommodation,FINANCE AND COMMERCIAL                                                                              ,PICKFORDS MOVE MANAGEMENT LIMITED                           ,BA0000280842,"5,388.90",743715332
BIS,The Insolvency Service,01/10/2014,Telecoms,BUSINESS SERVICES DIRECTORATE                                                                       ,PLUSNET PLC,BA0000280574,42.10,
BIS,The Insolvency Service,01/10/2014,Travel and Subsistence,OFFICIAL RECEIVER SERVICES                                                                          ,POOLE CAR PARK                                              ,BA0000280574,2.30,
BIS,The Insolvency Service,01/10/2014,Postage,FINANCE AND COMMERCIAL                                                                              ,POST AND PACKING LTD                                        ,BA0000280574,81.49,
BIS,The Insolvency Service,01/10/2014,Telecoms,FINANCE AND COMMERCIAL                                                                              ,POST AND PACKING LTD                                        ,BA0000280574,58.08,
BIS,The Insolvency Service,01/10/2014,Telecoms,FINANCE AND COMMERCIAL                                                                              ,POST AND PACKING LTD                                        ,BA0000280574,63.54,
BIS,The Insolvency Service,01/10/2014,Postage,OFFICIAL RECEIVER SERVICES                                                                          ,POST OFFICE LTD,BA0000280574,700.00,
BIS,The Insolvency Service,01/10/2014,Postage,OFFICIAL RECEIVER SERVICES                                                                          ,POST OFFICE LTD,BA0000280574,28.55,
BIS,The Insolvency Service,01/10/2014,Postage,OFFICIAL RECEIVER SERVICES                                                                          ,POST OFFICE LTD,BA0000280574,39.47,
BIS,The Insolvency Service,01/10/2014,Employee Related Costs,PEOPLE & CAPABILITY                                                                                 ,POSTURITE (UK) LTD.,BA0000280574,112.20,
BIS,The Insolvency Service,01/10/2014,Accommodation,PEOPLE & CAPABILITY                                                                                 ,POSTURITE (UK) LTD.,BA0000280574,739.36,
BIS,The Insolvency Service,01/10/2014,Accommodation,PEOPLE & CAPABILITY                                                                                 ,POSTURITE (UK) LTD.,BA0000280574,45.90,
BIS,The Insolvency Service,01/10/2014,Employee Related Costs,PEOPLE & CAPABILITY                                                                                 ,POSTURITE (UK) LTD.,BA0000280574,336.60,
BIS,The Insolvency Service,01/10/2014,Employee Related Costs,FINANCE AND COMMERCIAL                                                                              ,POSTURITE (UK) LTD.,BA0000280574,584.10,
BIS,The Insolvency Service,01/10/2014,Employee Related Costs,PEOPLE & CAPABILITY                                                                                 ,POSTURITE (UK) LTD.,BA0000280574,584.10,
BIS,The Insolvency Service,01/10/2014,Employee Related Costs,PEOPLE & CAPABILITY                                                                                 ,POSTURITE (UK) LTD.,BA0000280574,564.62,
BIS,The Insolvency Service,10/10/2014,Training Costs,PEOPLE & CAPABILITY                                                                                 ,R3,BA0000280411,350.00,577549778
BIS,The Insolvency Service,01/10/2014,Agency Workers,INFORMATION TECHNOLOGY                                                                              ,RE THINK RECRUITMENT SOLUTIONS LTD,BA0000280024,"10,987.68",905139440
BIS,The Insolvency Service,01/10/2014,Agency Workers,INFORMATION TECHNOLOGY                                                                              ,RE THINK RECRUITMENT SOLUTIONS LTD,BA0000280026,"12,635.83",905139440
BIS,The Insolvency Service,01/10/2014,Agency Workers,INFORMATION TECHNOLOGY                                                                              ,RE THINK RECRUITMENT SOLUTIONS LTD,BA0000280027,"6,168.92",905139440
BIS,The Insolvency Service,01/10/2014,Computer and IT Systems,INFORMATION TECHNOLOGY                                                                              ,RE THINK RECRUITMENT SOLUTIONS LTD,BA0000280025,"21,828.00",905139440
BIS,The Insolvency Service,16/10/2014,Agency Workers,INFORMATION TECHNOLOGY                                                                              ,RE THINK RECRUITMENT SOLUTIONS LTD,BA0000280552,"7,691.38",905139440
BIS,The Insolvency Service,16/10/2014,Agency Workers,INFORMATION TECHNOLOGY                                                                              ,RE THINK RECRUITMENT SOLUTIONS LTD,BA0000280555,"7,290.00",905139440
BIS,The Insolvency Service,16/10/2014,Computer and IT Systems,INFORMATION TECHNOLOGY                                                                              ,RE THINK RECRUITMENT SOLUTIONS LTD,BA0000280553,"17,013.00",905139440
BIS,The Insolvency Service,16/10/2014,Travel and Subsistence,INFORMATION TECHNOLOGY                                                                              ,RE THINK RECRUITMENT SOLUTIONS LTD,BA0000280554,772.99,905139440
BIS,The Insolvency Service,01/10/2014,Travel and Subsistence,INVESTIGATIONS & ENFORCEMENT                                                                        ,REDFUNNEL.CO.UK                                             ,BA0000280574,72.75,
BIS,The Insolvency Service,01/10/2014,Insolvency Case Related Costs,OFFICIAL RECEIVER SERVICES                                                                          ,REGISTRA S.L.,BA0000280574,-28.92,
BIS,The Insolvency Service,07/10/2014,Employee Related Costs,PEOPLE & CAPABILITY                                                                                 ,RIGHT MANAGEMENT WORKPLACE WELLNESS                         ,BA0000280221,661.21,
BIS,The Insolvency Service,31/10/2014,Training Costs,FINANCE AND COMMERCIAL                                                                              ,ROFFEY PARK INSTITUTE LIMITED,BA0000281010,855.83,
BIS,The Insolvency Service,06/10/2014,Insolvency Case Related Costs,OFFICIAL RECEIVER SERVICES                                                                          ,ROYAL MAIL,BA0000280209,"12,480.00",
BIS,The Insolvency Service,31/10/2014,Accommodation,FINANCE AND COMMERCIAL                                                                              ,ROYAL MAIL,BA0000280971,120.00,
BIS,The Insolvency Service,01/10/2014,Postage,OFFICIAL RECEIVER SERVICES                                                                          ,ROYAL MAIL GROUP LTD,BA0000280574,"2,340.00",
BIS,The Insolvency Service,02/10/2014,Postage,FINANCE AND COMMERCIAL                                                                              ,ROYAL MAIL GROUP LTD,BA0000280078,68.78,243170002
BIS,The Insolvency Service,02/10/2014,Postage,OFFICIAL RECEIVER SERVICES                                                                          ,ROYAL MAIL GROUP LTD,BA0000280080,91.12,243170002
BIS,The Insolvency Service,06/10/2014,Postage,OFFICIAL RECEIVER SERVICES                                                                          ,ROYAL MAIL GROUP LTD,BA0000280211,17.75,243170002
BIS,The Insolvency Service,07/10/2014,Postage,CUSTOMER AND COMMUNICATIONS                                                                         ,ROYAL MAIL GROUP LTD,BA0000280240,66.67,243170002
BIS,The Insolvency Service,08/10/2014,Postage,OFFICIAL RECEIVER SERVICES                                                                          ,ROYAL MAIL GROUP LTD,BA0000280297,66.60,243170002
BIS,The Insolvency Service,09/10/2014,Postage,OFFICIAL RECEIVER SERVICES                                                                          ,ROYAL MAIL GROUP LTD,BA0000280354,30.40,243170002
BIS,The Insolvency Service,14/10/2014,Postage,OFFICIAL RECEIVER SERVICES                                                                          ,ROYAL MAIL GROUP LTD,BA0000280472,19.21,243170002
BIS,The Insolvency Service,16/10/2014,Postage,OFFICIAL RECEIVER SERVICES                                                                          ,ROYAL MAIL GROUP LTD,BA0000280556,158.91,243170002
BIS,The Insolvency Service,16/10/2014,Postage,OFFICIAL RECEIVER SERVICES                                                                          ,ROYAL MAIL GROUP LTD,BA0000280559,81.43,243170002
BIS,The Insolvency Service,17/10/2014,Postage,FINANCE AND COMMERCIAL                                                                              ,ROYAL MAIL GROUP LTD,BA0000280613,67.55,243170002
BIS,The Insolvency Service,17/10/2014,Postage,OFFICIAL RECEIVER SERVICES                                                                          ,ROYAL MAIL GROUP LTD,BA0000280621,10.96,243170002
BIS,The Insolvency Service,17/10/2014,Postage,OFFICIAL RECEIVER SERVICES                                                                          ,ROYAL MAIL GROUP LTD,BA0000280622,7.98,243170002
BIS,The Insolvency Service,20/10/2014,Postage,FINANCE AND COMMERCIAL                                                                              ,ROYAL MAIL GROUP LTD,BA0000280655,54.30,243170002
BIS,The Insolvency Service,22/10/2014,Postage,FINANCE AND COMMERCIAL                                                                              ,ROYAL MAIL GROUP LTD,BA0000280727,0.36,243170002
BIS,The Insolvency Service,22/10/2014,Postage,OFFICIAL RECEIVER SERVICES                                                                          ,ROYAL MAIL GROUP LTD,BA0000280729,"1,192.88",243170002
BIS,The Insolvency Service,22/10/2014,Postage,OFFICIAL RECEIVER SERVICES                                                                          ,ROYAL MAIL GROUP LTD,BA0000280703,8.92,243170002
BIS,The Insolvency Service,27/10/2014,Postage,OFFICIAL RECEIVER SERVICES                                                                          ,ROYAL MAIL GROUP LTD,BA0000280850,18.36,243170002
BIS,The Insolvency Service,27/10/2014,Postage,OFFICIAL RECEIVER SERVICES                                                                          ,ROYAL MAIL GROUP LTD,BA0000280855,54.26,243170002
BIS,The Insolvency Service,27/10/2014,Postage,OFFICIAL RECEIVER SERVICES                                                                          ,ROYAL MAIL GROUP LTD,BA0000280858,8.80,243170002
BIS,The Insolvency Service,27/10/2014,Postage,OFFICIAL RECEIVER SERVICES                                                                          ,ROYAL MAIL GROUP LTD,BA0000280858,122.25,243170002
